Workbook

Sheet 初期設定
F1: 祝日一覧
A2: 2021 | B2: 年度 | C2: 2020年(年度ではない) | E2: 2021年(年度ではない) | G2: 2022年(年度ではない) | I2: 2023年(年度ではない) | K2: 2024年(年度ではない) | M2: 2025年(年度ではない) | Q2: 年間AB週の記録
C3: 2020/1/1 | D3: 元日 | E3: 2021-01-01 | F3: 元日 | G3: 2022-01-01 | H3: 元日 | I3: 2023-01-01 | J3: 元日 | K3: 2024-01-01 | L3: 元日 | M3: 2025-01-01 | N3: 元日 | Q3: =年度 & "/ 4/1" -> 2021/ 4/1 | R3: =TEXT(Q3,"aaa") -> 木
C4: 2020-01-13 | D4: 成人の日 | E4: 2021-01-11 | F4: 成人の日 | G4: 2022-01-10 | H4: 成人の日 | I4: 2023-01-02 | J4: 振替休日 | K4: 2024-01-08 | L4: 成人の日 | M4: 2025-01-13 | N4: 成人の日 | Q4: =Q3+1 -> 2021-04-02 | R4: =TEXT(Q4,"aaa") -> 金
C5: 2020-02-11 | D5: 建国記念の日 | E5: 2021-02-11 | F5: 建国記念の日 | G5: 2022-02-11 | H5: 建国記念の日 | I5: 2023-01-09 | J5: 成人の日 | K5: 2024-02-11 | L5: 建国記念の日 | M5: 2025-02-11 | N5: 建国記念の日 | Q5: =Q4+1 -> 2021-04-03 | R5: 土
A6: 6 | B6: 年 | C6: 2020-02-23 | D6: 天皇誕生日 | E6: 2021-02-23 | F6: 天皇誕生日 | G6: 2022-02-23 | H6: 天皇誕生日 | I6: 2023-02-11 | J6: 建国記念の日 | K6: 2024-02-12 | L6: 振替休日 | M6: 2025-02-23 | N6: 天皇誕生日 | Q6: 2021-04-04 | R6: 日
C7: 2020-02-24 | D7: 振替休日 | E7: 2021-03-20 | F7: 春分の日 | G7: 2022-03-21 | H7: 春分の日 | I7: 2023-02-23 | J7: 天皇誕生日 | K7: 2024-02-23 | L7: 天皇誕生日 | M7: 2025-02-24 | N7: 振替休日 | Q7: 2021-04-05 | R7: 月
A8: 1 | B8: 組 | C8: 2020-03-20 | D8: 春分の日 | E8: 2021-04-29 | F8: 昭和の日 | G8: 2022-04-29 | H8: 昭和の日 | I8: 2023-03-21 | J8: 春分の日 | K8: 2024-03-20 | L8: 春分の日 | M8: 2025-03-20 | N8: 春分の日 | Q8: 2021-04-06 | R8: 火 | S8: A
C9: 2020-04-29 | D9: 昭和の日 | E9: 2021-05-03 | F9: 憲法記念日 | G9: 2022-05-03 | H9: 憲法記念日 | I9: 2023-04-29 | J9: 昭和の日 | K9: 2024-04-29 | L9: 昭和の日 | M9: 2025-04-29 | N9: 昭和の日 | Q9: 2021-04-07 | R9: 水 | S9: A
C10: 2020-05-03 | D10: 憲法記念日 | E10: 2021-05-04 | F10: みどりの日 | G10: 2022-05-04 | H10: みどりの日 | I10: 2023-05-03 | J10: 憲法記念日 | K10: 2024-05-03 | L10: 憲法記念日 | M10: 2025-05-03 | N10: 憲法記念日 | Q10: 2021-04-08 | R10: 木 | S10: A
C11: 2020-05-04 | D11: みどりの日 | E11: 2021-05-05 | F11: こどもの日 | G11: 2022-05-05 | H11: こどもの日 | I11: 2023-05-04 | J11: みどりの日 | K11: 2024-05-04 | L11: みどりの日 | M11: 2025-05-04 | N11: みどりの日 | Q11: 2021-04-09 | R11: 金 | S11: A
C12: 2020-05-05 | D12: こどもの日 | E12: 2021-07-19 | F12: 海の日 | G12: 2022-07-18 | H12: 海の日 | I12: 2023-05-05 | J12: こどもの日 | K12: 2024-05-05 | L12: こどもの日 | M12: 2025-05-05 | N12: こどもの日 | Q12: 2021-04-10 | R12: 土 | S12: A
A13: エクセル | B13: 小学校 | C13: 2020-05-06 | D13: 振替休日 | E13: 2021-08-11 | F13: 山の日 | G13: 2022-08-11 | H13: 山の日 | I13: 2023-07-17 | J13: 海の日 | K13: 2024-05-06 | L13: 振替休日 | M13: 2025-05-06 | N13: 振替休日 | Q13: 2021-04-11 | R13: 日 | S13: A
C14: 2020-07-23 | D14: 海の日 | E14: 2021-09-20 | F14: 敬老の日 | G14: 2022-09-19 | H14: 敬老の日 | I14: 2023-08-11 | J14: 山の日 | K14: 2024-07-15 | L14: 海の日 | M14: 2025-07-21 | N14: 海の日 | Q14: 2021-04-12 | R14: 月 | S14: A
C15: 2020-07-24 | D15: スポーツの日 | E15: 2021-09-23 | F15: 秋分の日 | G15: 2022-09-23 | H15: 秋分の日 | I15: 2023-09-18 | J15: 敬老の日 | K15: 2024-08-11 | L15: 山の日 | M15: 2025-08-11 | N15: 山の日 | Q15: 2021-04-13 | R15: 火 | S15: B
C16: 2020-08-10 | D16: 山の日 | E16: 2021-10-11 | F16: スポーツの日 | G16: 2022-10-10 | H16: スポーツの日 | I16: 2023-09-23 | J16: 秋分の日 | K16: 2024-08-12 | L16: 振替休日 | M16: 2025-09-15 | N16: 敬老の日 | Q16: 2021-04-14 | R16: 水 | S16: B
C17: 2020-09-21 | D17: 敬老の日 | E17: 2021-11-03 | F17: 文化の日 | G17: 2022-11-03 | H17: 文化の日 | I17: 2023-10-09 | J17: スポーツの日 | K17: 2024-09-16 | L17: 敬老の日 | M17: 2025-09-23 | N17: 秋分の日 | Q17: 2021-04-15 | R17: 木 | S17: B
C18: 2020-09-22 | D18: 秋分の日 | E18: 2021-11-23 | F18: 勤労感謝の日 | G18: 2022-11-23 | H18: 勤労感謝の日 | I18: 2023-11-03 | J18: 文化の日 | K18: 2024-09-22 | L18: 秋分の日 | M18: 2025-10-13 | N18: スポーツの日 | Q18: 2021-04-16 | R18: 金 | S18: B
C19: 2020-11-03 | D19: 文化の日 | I19: 2023-11-23 | J19: 勤労感謝の日 | K19: 2024-09-23 | L19: 振替休日 | M19: 2025-11-03 | N19: 文化の日 | Q19: 2021-04-17 | R19: 土 | S19: B
C20: 2020-11-23 | D20: 勤労感謝の日 | K20: 2024-10-14 | L20: スポーツの日 | M20: 2025-11-23 | N20: 勤労感謝の日 | Q20: 2021-04-18 | R20: 日 | S20: B
K21: 2024-11-03 | L21: 文化の日 | M21: 2025-11-24 | N21: 振替休日 | Q21: 2021-04-19 | R21: 月 | S21: B
K22: 2024-11-04 | L22: 振替休日 | Q22: 2021-04-20 | R22: 火 | S22: A
K23: 2024-11-23 | L23: 勤労感謝の日 | Q23: 2021-04-21 | R23: 水 | S23: A
Q24: 2021-04-22 | R24: 木 | S24: A
D25: 日曜参観代休 | F25: 日曜参観代休 | H25: 日曜参観代休 | J25: 日曜参観代休 | L25: 日曜参観代休 | N25: 日曜参観代休 | Q25: 2021-04-23 | R25: 金 | S25: A
D26: 運動会代休 | F26: 運動会代休 | H26: 運動会代休 | J26: 運動会代休 | L26: 運動会代休 | N26: 運動会代休 | Q26: 2021-04-24 | R26: 土 | S26: A
Q27: 2021-04-25 | R27: 日 | S27: A
C28: 2020-01-02 | D28: 年始 | E28: 2021-01-02 | F28: 年始 | G28: 2022-01-02 | H28: 年始 | I28: 2023-01-02 | J28: 年始 | K28: 2024-01-02 | L28: 年始 | M28: 2025-01-02 | N28: 年始 | Q28: 2021-04-26 | R28: 月 | S28: A
C29: 2020-01-03 | D29: 年始 | E29: 2021-01-03 | F29: 年始 | G29: 2022-01-03 | H29: 年始 | I29: 2023-01-03 | J29: 年始 | K29: 2024-01-03 | L29: 年始 | M29: 2025-01-03 | N29: 年始 | Q29: 2021-04-27 | R29: 火 | S29: B
Q30: 2021-04-28 | R30: 水 | S30: B
D31: 夏季閉庁日 | Q31: 2021-04-29 | R31: 木 | S31: B
D32: 夏季閉庁日 | Q32: 2021-04-30 | R32: 金 | S32: B
Q33: 2021-05-01 | R33: 土 | S33: B
C34: 2020-12-29 | D34: 年末 | E34: 2021-12-29 | F34: 年末 | G34: 2022-12-29 | H34: 年末 | I34: 2023-12-29 | J34: 年末 | K34: 2024-12-29 | L34: 年末 | M34: 2025-12-29 | N34: 年末 | Q34: 2021-05-02 | R34: 日 | S34: B
C35: 2020-12-30 | D35: 年末 | E35: 2021-12-30 | F35: 年末 | G35: 2022-12-30 | H35: 年末 | I35: 2023-12-30 | J35: 年末 | K35: 2024-12-30 | L35: 年末 | M35: 2025-12-30 | N35: 年末 | Q35: 2021-05-03 | R35: 月 | S35: B
C36: 2020-12-31 | D36: 年末 | E36: 2021-12-31 | F36: 年末 | G36: 2022-12-31 | H36: 年末 | I36: 2023/19/31 | J36: 年末 | K36: 2024/19/31 | L36: 年末 | M36: 2025-12-31 | N36: 年末 | Q36: 2021-05-04 | R36: 火 | S36: A
Q37: 2021-05-05 | R37: 水 | S37: A
Q38: 2021-05-06 | R38: 木 | S38: A
C39: 土日登校 | Q39: 2021-05-07 | R39: 金 | S39: A
D40: 日曜参観 | F40: 土曜参観 | H40: 土曜参観 | J40: 土曜参観 | L40: 土曜参観 | N40: 土曜参観 | Q40: 2021-05-08 | R40: 土 | S40: A
D41: 運動会 | F41: 運動会 | H41: 運動会 | J41: 運動会 | L41: 運動会 | N41: 運動会 | Q41: 2021-05-09 | R41: 日 | S41: A
Q42: 2021-05-10 | R42: 月 | S42: A
Q43: 2021-05-11 | R43: 火 | S43: B
Q44: 2021-05-12 | R44: 水 | S44: B
Q45: 2021-05-13 | R45: 木 | S45: B
Q46: 2021-05-14 | R46: 金 | S46: B
Q47: 2021-05-15 | R47: 土 | S47: B
Q48: 2021-05-16 | R48: 日 | S48: B
Q49: 2021-05-17 | R49: 月 | S49: B
Q50: 2021-05-18 | R50: 火 | S50: A
Q51: 2021-05-19 | R51: 水 | S51: A
Q52: 2021-05-20 | R52: 木 | S52: A
Q53: 2021-05-21 | R53: 金 | S53: A
Q54: 2021-05-22 | R54: 土 | S54: A
Q55: 2021-05-23 | R55: 日 | S55: A
Q56: 2021-05-24 | R56: 月 | S56: A
Q57: 2021-05-25 | R57: 火 | S57: B
Q58: 2021-05-26 | R58: 水 | S58: B
Q59: 2021-05-27 | R59: 木 | S59: B
Q60: 2021-05-28 | R60: 金 | S60: B
Q61: 2021-05-29 | R61: 土 | S61: B
Q62: 2021-05-30 | R62: 日 | S62: B
Q63: 2021-05-31 | R63: 月 | S63: B
Q64: 2021-06-01 | R64: 火 | S64: A
Q65: 2021-06-02 | R65: 水 | S65: A
Q66: 2021-06-03 | R66: 木 | S66: A
Q67: 2021-06-04 | R67: 金 | S67: A
Q68: 2021-06-05 | R68: =TEXT(Q68,"aaa") -> 土 | S68: A
Q69: =Q68+1 -> 2021-06-06 | R69: 日 | S69: A
Q70: 2021-06-07 | R70: 月 | S70: A
Q71: 2021-06-08 | R71: 火 | S71: B
Q72: 2021-06-09 | R72: 水 | S72: B
Q73: 2021-06-10 | R73: 木 | S73: B
Q74: 2021-06-11 | R74: 金 | S74: B
Q75: 2021-06-12 | R75: 土 | S75: B
Q76: 2021-06-13 | R76: 日 | S76: B
Q77: 2021-06-14 | R77: 月 | S77: B
Q78: 2021-06-15 | R78: 火 | S78: A
Q79: 2021-06-16 | R79: 水 | S79: A
Q80: 2021-06-17 | R80: 木 | S80: A
Q81: 2021-06-18 | R81: 金 | S81: A
Q82: 2021-06-19 | R82: 土 | S82: A
Q83: 2021-06-20 | R83: 日 | S83: A
Q84: 2021-06-21 | R84: 月 | S84: A
Q85: 2021-06-22 | R85: 火 | S85: B
Q86: 2021-06-23 | R86: 水 | S86: B
Q87: 2021-06-24 | R87: 木 | S87: B
Q88: 2021-06-25 | R88: 金 | S88: B
Q89: 2021-06-26 | R89: 土 | S89: B
Q90: 2021-06-27 | R90: 日 | S90: B
Q91: 2021-06-28 | R91: 月 | S91: B
Q92: 2021-06-29 | R92: 火 | S92: A
Q93: 2021-06-30 | R93: 水 | S93: A
Q94: 2021-07-01 | R94: 木 | S94: A
Q95: 2021-07-02 | R95: 金 | S95: A
Q96: 2021-07-03 | R96: 土 | S96: A
Q97: 2021-07-04 | R97: 日 | S97: A
Q98: 2021-07-05 | R98: 月 | S98: A
Q99: 2021-07-06 | R99: 火 | S99: B
Q100: 2021-07-07 | R100: 水 | S100: B
Q101: 2021-07-08 | R101: 木 | S101: B
Q102: 2021-07-09 | R102: 金 | S102: B
Q103: 2021-07-10 | R103: 土 | S103: B
Q104: 2021-07-11 | R104: 日 | S104: B
Q105: 2021-07-12 | R105: 月 | S105: B
Q106: 2021-07-13 | R106: 火 | S106: A
Q107: 2021-07-14 | R107: 水 | S107: A
Q108: 2021-07-15 | R108: 木 | S108: A
Q109: 2021-07-16 | R109: 金 | S109: A
Q110: 2021-07-17 | R110: 土 | S110: A
Q111: 2021-07-18 | R111: 日 | S111: A
Q112: 2021-07-19 | R112: 月 | S112: A
Q113: 2021-07-20 | R113: 火 | S113: B
Q114: 2021-07-21 | R114: 水 | S114: B
Q115: 2021-07-22 | R115: 木 | S115: B
Q116: 2021-07-23 | R116: 金 | S116: B
Q117: 2021-07-24 | R117: 土 | S117: B
Q118: 2021-07-25 | R118: 日 | S118: B
Q119: 2021-07-26 | R119: 月 | S119: B
Q120: 2021-07-27 | R120: 火 | S120: A
Q121: 2021-07-28 | R121: 水 | S121: A
Q122: 2021-07-29 | R122: 木 | S122: A
Q123: 2021-07-30 | R123: 金 | S123: A
Q124: 2021-07-31 | R124: 土 | S124: A
Q125: 2021-08-01 | R125: 日 | S125: A
Q126: 2021-08-02 | R126: 月 | S126: A
Q127: 2021-08-03 | R127: 火 | S127: B
Q128: 2021-08-04 | R128: 水 | S128: B
Q129: 2021-08-05 | R129: 木 | S129: B
Q130: 2021-08-06 | R130: 金 | S130: B
Q131: 2021-08-07 | R131: 土 | S131: B
Q132: 2021-08-08 | R132: =TEXT(Q132,"aaa") -> 日 | S132: B
Q133: =Q132+1 -> 2021-08-09 | R133: 月 | S133: B
Q134: 2021-08-10 | R134: 火 | S134: A
Q135: 2021-08-11 | R135: 水 | S135: A
Q136: 2021-08-12 | R136: 木 | S136: A
Q137: 2021-08-13 | R137: 金 | S137: A
Q138: 2021-08-14 | R138: 土 | S138: A
Q139: 2021-08-15 | R139: 日 | S139: A
Q140: 2021-08-16 | R140: 月 | S140: A
Q141: 2021-08-17 | R141: 火 | S141: B
Q142: 2021-08-18 | R142: 水 | S142: B
Q143: 2021-08-19 | R143: 木 | S143: B
Q144: 2021-08-20 | R144: 金 | S144: B
Q145: 2021-08-21 | R145: 土 | S145: B
Q146: 2021-08-22 | R146: 日 | S146: B
Q147: 2021-08-23 | R147: 月 | S147: B
Q148: 2021-08-24 | R148: 火 | S148: A
Q149: 2021-08-25 | R149: 水 | S149: A
Q150: 2021-08-26 | R150: 木 | S150: A
Q151: 2021-08-27 | R151: 金 | S151: A
Q152: 2021-08-28 | R152: 土 | S152: A
Q153: 2021-08-29 | R153: 日 | S153: A
Q154: 2021-08-30 | R154: 月 | S154: A
Q155: 2021-08-31 | R155: 火 | S155: B
Q156: 2021-09-01 | R156: 水 | S156: B
Q157: 2021-09-02 | R157: 木 | S157: B
Q158: 2021-09-03 | R158: 金 | S158: B
Q159: 2021-09-04 | R159: 土 | S159: B
Q160: 2021-09-05 | R160: 日 | S160: B
Q161: 2021-09-06 | R161: 月 | S161: B
Q162: 2021-09-07 | R162: 火 | S162: A
Q163: 2021-09-08 | R163: 水 | S163: A
Q164: 2021-09-09 | R164: 木 | S164: A
Q165: 2021-09-10 | R165: 金 | S165: A
Q166: 2021-09-11 | R166: 土 | S166: A
Q167: 2021-09-12 | R167: 日 | S167: A
Q168: 2021-09-13 | R168: 月 | S168: A
Q169: 2021-09-14 | R169: 火 | S169: B
Q170: 2021-09-15 | R170: 水 | S170: B
Q171: 2021-09-16 | R171: 木 | S171: B
Q172: 2021-09-17 | R172: 金 | S172: B
Q173: 2021-09-18 | R173: 土 | S173: B
Q174: 2021-09-19 | R174: 日 | S174: B
Q175: 2021-09-20 | R175: 月 | S175: B
Q176: 2021-09-21 | R176: 火 | S176: A
Q177: 2021-09-22 | R177: 水 | S177: A
Q178: 2021-09-23 | R178: 木 | S178: A
Q179: 2021-09-24 | R179: 金 | S179: A
Q180: 2021-09-25 | R180: 土 | S180: A
Q181: 2021-09-26 | R181: 日 | S181: A
Q182: 2021-09-27 | R182: 月 | S182: A
Q183: 2021-09-28 | R183: 火 | S183: B
Q184: 2021-09-29 | R184: 水 | S184: B
Q185: 2021-09-30 | R185: 木 | S185: B
Q186: 2021-10-01 | R186: 金 | S186: B
Q187: 2021-10-02 | R187: 土 | S187: B
Q188: 2021-10-03 | R188: 日 | S188: B
Q189: 2021-10-04 | R189: 月 | S189: B
Q190: 2021-10-05 | R190: 火 | S190: A
Q191: 2021-10-06 | R191: 水 | S191: A
Q192: 2021-10-07 | R192: 木 | S192: A
Q193: 2021-10-08 | R193: 金 | S193: A
Q194: 2021-10-09 | R194: 土 | S194: A
Q195: 2021-10-10 | R195: 日 | S195: A
Q196: 2021-10-11 | R196: =TEXT(Q196,"aaa") -> 月 | S196: A
Q197: =Q196+1 -> 2021-10-12 | R197: 火 | S197: B
Q198: 2021-10-13 | R198: 水 | S198: B
Q199: 2021-10-14 | R199: 木 | S199: B
Q200: 2021-10-15 | R200: 金 | S200: B
... 168 more rows

Sheet 標準授業時数
A1: 学年 教科等 | C1: 1 | D1: 2 | E1: 3 | F1: 4 | G1: 5 | H1: 6 | I1: 計
A2: 国語 | B2: 時数 | C2: 306 | D2: 315 | E2: 245 | F2: 245 | G2: 175 | H2: 175 | I2: =SUM(C2:H2) -> 1461
B3: 週当コマ数 | C3: 9 | D3: 9 | E3: 7 | F3: 7 | G3: 5 | H3: 5
A4: 社会 | B4: 時数 | E4: 70 | F4: 90 | G4: 100 | H4: 105 | I4: =SUM(C4:H4) -> 365
B5: 週当コマ数 | E5: 2 | F5: 2.6 | G5: 2.9 | H5: 3
A6: 算数 | B6: 時数 | C6: 136 | D6: 175 | E6: 175 | F6: 175 | G6: 175 | H6: 175 | I6: =SUM(C6:H6) -> 1011
B7: 週当コマ数 | C7: 4 | D7: 5 | E7: 5 | F7: 5 | G7: 5 | H7: 5
A8: 理科 | B8: 時数 | E8: 90 | F8: 105 | G8: 105 | H8: 105 | I8: 405
B9: 週当コマ数 | E9: 2.6 | F9: 3 | G9: 3 | H9: 3
A10: 生活 | B10: 時数 | C10: 102 | D10: 105 | I10: 207
B11: 週当コマ数 | C11: 3 | D11: 3
A12: 音楽 | B12: 時数 | C12: 68 | D12: 70 | E12: 60 | F12: 60 | G12: 50 | H12: 50 | I12: 358
B13: 週当コマ数 | C13: 2 | D13: 2 | E13: 1.7 | F13: 1.7 | G13: 1.4 | H13: 1.4
A14: 図画工作 | B14: 時数 | C14: 68 | D14: 70 | E14: 60 | F14: 60 | G14: 50 | H14: 50 | I14: 358
B15: 週当コマ数 | C15: 2 | D15: 2 | E15: 1.7 | F15: 1.7 | G15: 1.4 | H15: 1.4
A16: 家庭 | B16: 時数 | G16: 60 | H16: 55 | I16: 115
B17: 週当コマ数 | G17: 1.7 | H17: 1.6
A18: 体育 | B18: 時数 | C18: 102 | D18: 105 | E18: 105 | F18: 105 | G18: 90 | H18: 90 | I18: 597
B19: 週当コマ数 | C19: 3 | D19: 3 | E19: 3 | F19: 3 | G19: 2.6 | H19: 2.6
A20: 英語 | B20: 時数 | G20: 70 | H20: 70 | I20: 140
B21: 週当コマ数 | G21: 2 | H21: 2
A22: 道徳 | B22: 時数 | C22: 34 | D22: 35 | E22: 35 | F22: 35 | G22: 35 | H22: 35 | I22: 209
B23: 週当コマ数 | C23: 1 | D23: 1 | E23: 1 | F23: 1 | G23: 1 | H23: 1
A24: 外国語活動 | B24: 時数 | E24: 35 | F24: 35 | I24: =SUM(C24:H24) -> 70
B25: 週当コマ数 | E25: 1 | F25: 1
A26: 総合的な学習の時間 | B26: 時数 | E26: 70 | F26: 70 | G26: 70 | H26: 70 | I26: =SUM(C26:H26) -> 280
B27: 週当コマ数 | E27: 2 | F27: 2 | G27: 2 | H27: 2
A28: 特別活動 | B28: 時数 | C28: 34 | D28: 35 | E28: 35 | F28: 35 | G28: 35 | H28: 35 | I28: =SUM(C28:H28) -> 209
B29: 週当コマ数 | C29: 1 | D29: 1 | E29: 1 | F29: 1 | G29: 1 | H29: 1
A30: 合計 | B30: 時数 | C30: =SUM(C2,C4,C6,C8,C10,C12,C14,C16,C18,C22,C24,C26,C28) -> 850 | D30: 910 | E30: 980 | F30: 1015 | G30: =SUM(G2,G4,G6,G8,G10,G12,G14,G16,G18,G20,G22,G24,G26,G28) -> 1015 | H30: =SUM(H2,H4,H6,H8,H10,H12,H14,H16,H18,H20,H22,H24,H26,H28) -> 1015 | I30: =SUM(C30:H30) -> 5785
B31: 週当コマ数 | C31: 25 | D31: 26 | E31: 28 | F31: 29 | G31: =SUM(G3,G5,G7,G9,G11,G13,G15,G17,G19,G21,G23,G25,G27,G29) -> 29 | H31: =SUM(H3,H5,H7,H9,H11,H13,H15,H17,H19,H21,H23,H25,H27,H29) -> 29

Sheet 様式1
B1: ="令和"&初期設定!A2-2018&"("&初期設定!A2&")年度 授 業 時 数 記 録（様式１）" -> 令和3(2021)年度 授 業 時 数 記 録（様式１）
C2: ="( "&学年&" )" -> ( 6 ) | D2: 年 | E2: ="( "&組&" )" -> ( 1 ) | F2: 組 | Q2: =学校名&"小学校" -> エクセル小学校
C5: 国語 | D5: 社会 | E5: 算数 | F5: 理科 | G5: 生活 | H5: 音楽 | I5: 図工 | J5: 家庭 | K5: 体育 | L5: 英語 | M5: 道徳 | N5: 外国語 | O5: 総合 | P5: 特活 | Q5: 合計 時数 | R5: 学校 行事 | S5: 委員会 クラブ
B7: 4
B8: 5
B9: 6
B10: 7
B11: １ 合計 | C11: =SUM(C7:C10) -> 0 | D11: 0 | E11: 0 | F11: 0 | G11: 0 | H11: 0 | I11: 0 | J11: 0 | K11: 0 | L11: 0 | M11: 0 | N11: 0 | O11: 0 | P11: 0 | Q11: =SUM(C11:P11) -> 0 | R11: =SUM(R7:R10) -> 0 | S11: =SUM(S7:S10) -> 0
B12: 8
B13: 9
B14: 10
B15: 11
B16: 12
B17: ２ 合計 | C17: =SUM(C12:C16) -> 0 | D17: =SUM(D12:D16) -> 0 | E17: 0 | F17: 0 | G17: 0 | H17: 0 | I17: 0 | J17: 0 | K17: 0 | L17: =SUM(L12:L16) -> 0 | M17: 0 | N17: 0 | O17: 0 | P17: 0 | Q17: 0 | R17: =SUM(R12:R16) -> 0 | S17: =SUM(S12:S16) -> 0
B18: １・２ 合計 | C18: =SUM(C17,C11) -> 0 | D18: 0 | E18: 0 | F18: 0 | G18: 0 | H18: 0 | I18: 0 | J18: 0 | K18: 0 | L18: =SUM(L17,L11) -> 0 | M18: 0 | N18: 0 | O18: 0 | P18: 0 | Q18: 0 | R18: =SUM(R11,R17) -> 0 | S18: =SUM(S11,S17) -> 0
B19: 1
B20: 2
B21: 3
B22: ３ 合計 | C22: =SUM(C19:C21) -> 0 | D22: =SUM(D19:D21) -> 0 | E22: 0 | F22: 0 | G22: 0 | H22: 0 | I22: 0 | J22: 0 | K22: 0 | L22: =SUM(L19:L21) -> 0 | M22: 0 | N22: 0 | O22: 0 | P22: 0 | Q22: 0 | R22: =SUM(R19:R21) -> 0 | S22: =SUM(S19:S21) -> 0
B23: 総合計 | C23: =SUM(C18,C22) -> 0 | D23: =SUM(D18,D22) -> 0 | E23: 0 | F23: 0 | G23: 0 | H23: 0 | I23: 0 | J23: 0 | K23: 0 | L23: =SUM(L18,L22) -> 0 | M23: 0 | N23: 0 | O23: 0 | P23: 0 | Q23: 0 | R23: =SUM(R18,R22) -> 0 | S23: =SUM(S18,S22) -> 0
C26: 国語 | D26: 社会 | E26: 算数 | F26: 理科 | G26: 生活 | H26: 音楽 | I26: 図工 | J26: 家庭 | K26: 体育 | L26: 英語 | M26: 道徳 | N26: 外国語 | O26: 総合 | P26: 特活
B27: 1学期 | C27: =ROUNDUP(C35*0.36,0) -> 63 | D27: 38 | E27: 63 | F27: 38 | G27: 0 | H27: 18 | I27: 18 | J27: 20 | K27: 33 | L27: 26 | M27: 13 | N27: =ROUNDUP(N35*0.36,0) -> 0 | O27: 26 | P27: 13
B28: 差 | C28: =IF(C27=0,"",C11-C27) -> -63 | D28: -38 | E28: -63 | F28: -38 | H28: -18 | I28: -18 | J28: -20 | K28: -33 | L28: -26 | M28: -13 | N28: =IF(N27=0,"",N11-N27) ->  | O28: -26 | P28: -13
B29: 1学期 達成率 | C29: =IF(C27=0,"",(C11/C27)) -> 0 | D29: =IF(D$27=0,"",(D$11/D$27)) -> 0 | E29: 0 | F29: 0 | H29: 0 | I29: 0 | J29: 0 | K29: 0 | L29: 0 | M29: 0 | O29: 0 | P29: 0
B30: 全体 達成率 | C30: =IF(C27=0,"",(C11/C35)) -> 0 | D30: =IF(D27=0,"",(D11/D35)) -> 0 | E30: 0 | F30: 0 | H30: 0 | I30: 0 | J30: 0 | K30: 0 | L30: 0 | M30: 0 | O30: 0 | P30: 0
B31: 2学期 | C31: =ROUNDUP(C35*0.38,0)+C27 -> 130 | D31: =ROUNDUP(D35*0.38,0)+D27 -> 78 | E31: =ROUNDUP(E35*0.38,0)+E27 -> 130 | F31: 78 | G31: 0 | H31: 37 | I31: 37 | J31: 41 | K31: 68 | L31: 53 | M31: 27 | N31: =ROUNDUP(N35*0.38,0)+N27 -> 0 | O31: 53 | P31: 27
B32: 差 | C32: =IF(C31=0,"",C18-C31) -> -130 | D32: -78 | E32: -130 | F32: -78 | H32: -37 | I32: -37 | J32: -41 | K32: -68 | L32: -53 | M32: -27 | N32: =IF(N31=0,"",N18-N31) ->  | O32: -53 | P32: -27
B33: 1,2学期 達成率 | C33: =IF(C31=0,"",(C18/C31)) -> 0 | D33: =IF(D31=0,"",(D18/D31)) -> 0 | E33: 0 | F33: 0 | H33: 0 | I33: 0 | J33: 0 | K33: 0 | L33: 0 | M33: 0 | O33: 0 | P33: 0
B34: 全体 達成率 | C34: =IF(C31=0,"",(C18/C35)) -> 0 | D34: =IF(D31=0,"",(D18/D35)) -> 0 | E34: 0 | F34: 0 | H34: 0 | I34: 0 | J34: 0 | K34: 0 | L34: 0 | M34: 0 | O34: 0 | P34: 0
B35: 3学期 | C35: =IF(学年=1,標準授業時数!C2,IF(学年=2,標準授業時数!D2,IF(学年=3,標準授業時数!E2,IF(学年=4,標準授業時数!F2,IF(学年=5,標準授業時数!G2,IF(学年=6,標準授業時数!H2,"")))))) -> 175 | D35: =IF(学年=1,標準授業時数!C4,IF(学年=2,標準授業時数!D4,IF(学年=3,標準授業時数!E4,IF(学年=4,標準授業時数!F4,IF(学年=5,標準授業時数!G4,IF(学年=6,標準授業時数!H4,"")))))) -> 105 | E35: =IF(学年=1,標準授業時数!C6,IF(学年=2,標準授業時数!D6,IF(学年=3,標準授業時数!E6,IF(学年=4,標準授業時数!F6,IF(学年=5,標準授業時数!G6,IF(学年=6,標準授業時数!H6,"")))))) -> 175 | F35: =IF(学年=1,標準授業時数!C8,IF(学年=2,標準授業時数!D8,IF(学年=3,標準授業時数!E8,IF(学年=4,標準授業時数!F8,IF(学年=5,標準授業時数!G8,IF(学年=6,標準授業時数!H8,"")))))) -> 105 | G35: =IF(学年=1,標準授業時数!C10,IF(学年=2,標準授業時数!D10,IF(学年=3,標準授業時数!E10,IF(学年=4,標準授業時数!F10,IF(学年=5,標準授業時数!G10,IF(学年=6,標準授業時数!H10,"")))))) -> 0 | H35: =IF(学年=1,標準授業時数!C12,IF(学年=2,標準授業時数!D12,IF(学年=3,標準授業時数!E12,IF(学年=4,標準授業時数!F12,IF(学年=5,標準授業時数!G12,IF(学年=6,標準授業時数!H12,"")))))) -> 50 | I35: =IF(学年=1,標準授業時数!C14,IF(学年=2,標準授業時数!D14,IF(学年=3,標準授業時数!E14,IF(学年=4,標準授業時数!F14,IF(学年=5,標準授業時数!G14,IF(学年=6,標準授業時数!H14,"")))))) -> 50 | J35: =IF(学年=1,標準授業時数!C16,IF(学年=2,標準授業時数!D16,IF(学年=3,標準授業時数!E16,IF(学年=4,標準授業時数!F16,IF(学年=5,標準授業時数!G16,IF(学年=6,標準授業時数!H16,"")))))) -> 55 | K35: =IF(学年=1,標準授業時数!C18,IF(学年=2,標準授業時数!D18,IF(学年=3,標準授業時数!E18,IF(学年=4,標準授業時数!F18,IF(学年=5,標準授業時数!G18,IF(学年=6,標準授業時数!H18,"")))))) -> 90 | L35: =IF(学年=1,標準授業時数!C20,IF(学年=2,標準授業時数!D20,IF(学年=3,標準授業時数!E20,IF(学年=4,標準授業時数!F20,IF(学年=5,標準授業時数!G20,IF(学年=6,標準授業時数!H20,"")))))) -> 70 | M35: =IF(学年=1,標準授業時数!C22,IF(学年=2,標準授業時数!D22,IF(学年=3,標準授業時数!E22,IF(学年=4,標準授業時数!F22,IF(学年=5,標準授業時数!G22,IF(学年=6,標準授業時数!H22,"")))))) -> 35 | N35: =IF(学年=1,標準授業時数!C24,IF(学年=2,標準授業時数!D24,IF(学年=3,標準授業時数!E24,IF(学年=4,標準授業時数!F24,IF(学年=5,標準授業時数!G24,IF(学年=6,標準授業時数!H24,"")))))) -> 0 | O35: =IF(学年=1,標準授業時数!C26,IF(学年=2,標準授業時数!D26,IF(学年=3,標準授業時数!E26,IF(学年=4,標準授業時数!F26,IF(学年=5,標準授業時数!G26,IF(学年=6,標準授業時数!H26,"")))))) -> 70 | P35: =IF(学年=1,標準授業時数!C28,IF(学年=2,標準授業時数!D28,IF(学年=3,標準授業時数!E28,IF(学年=4,標準授業時数!F28,IF(学年=5,標準授業時数!G28,IF(学年=6,標準授業時数!H28,"")))))) -> 35
B36: 差 | C36: =IF(C35=0,"",C23-C35) -> -175 | D36: -105 | E36: -175 | F36: -105 | H36: -50 | I36: -50 | J36: -55 | K36: -90 | L36: -70 | M36: -35 | O36: -70 | P36: -35
B37: Total 達成率 | C37: =IF(C35=0,"",(C23/C35)) -> 0 | D37: =IF(D35=0,"",(D23/D35)) -> 0 | E37: 0 | F37: 0 | H37: 0 | I37: 0 | J37: 0 | K37: 0 | L37: 0 | M37: 0 | O37: 0 | P37: 0

Sheet 4月
B1: 4 | C1: 月 | D1: 時間割を入力してください | AO1: 国語 | AP1: 社会 | AQ1: 算数 | AR1: 理科 | AS1: 生活 | AT1: 音楽 | AU1: 図工 | AV1: 家庭 | AW1: 体育 | AX1: 英語 | AY1: 道徳 | AZ1: 外国 | BA1: 総合 | BB1: 特活 | BC1: 委員 | BD1: 学校 | BE1: 国半 | BF1: 社半 | BG1: 算半 | BH1: 理半 | BI1: 生半 | BJ1: 音半 | BK1: 図半 | BL1: 家半 | BM1: 体半 | BN1: 英半 | BO1: 道半 | BP1: 外半 | BQ1: 総半 | BR1: 特半 | BS1: 委半 | BT1: 学半
C2: A | D2: 月 | E2: 火 | F2: 水 | G2: 木 | H2: 金 | J2: B | K2: 月 | L2: 火 | M2: 水 | N2: 木 | O2: 金 | AO2: リスト範囲
C3: 1 | D3: 国語 | E3: 社会 | F3: 音楽 | G3: 国語 | H3: 総合 | J3: 1 | K3: 国語 | L3: 社会 | M3: 音楽 | N3: 国語 | O3: 総合
C4: 2 | D4: 算数 | E4: 算数 | F4: 社会 | G4: 算数 | H4: 算数 | J4: 2 | K4: 算数 | L4: 算数 | M4: 社会 | N4: 算数 | O4: 算数
C5: 3 | D5: 理科 | E5: 家庭 | F5: 英語 | G5: 道徳 | H5: 国語 | J5: 3 | K5: 理科 | L5: 図工 | M5: 英語 | N5: 道徳 | O5: 国語
A6: 記入済みセル | C6: 4 | D6: 理科 | E6: 家庭 | F6: 算数 | G6: 総合 | H6: 音楽 | J6: 4 | K6: 理科 | L6: 図工 | M6: 算数 | N6: 総合 | O6: 家庭
A7: =COUNTIF(E11:R41,"*?") -> 0 | C7: 5 | D7: 社会 | E7: 国語 | F7: 国語 | G7: 理科 | H7: 体育 | J7: 5 | K7: 社会 | L7: 国語 | M7: 国語 | N7: 理科 | O7: 体育
C8: 6 | D8: 英語 | E8: 体育 | G8: 体育 | H8: 特活 | J8: 6 | K8: 英語 | L8: 体育 | N8: 体育 | O8: 特活
B10: AB | C10: 月日 | D10: 曜日 | E10: 1 | G10: 2 | I10: 3 | K10: 4 | M10: 5 | O10: 6 | Q10: 学校行事 | U10: 追加 | W10: 計 | X10: １h | Y10: 0.5h | AA10: 転記用
C11: =DATE(年度,4,1) -> 2021-04-01 | T11: 各教科など | V11: 国語 | W11: =X11+Y11*0.5+U11 -> 0 | X11: =COUNTIF($E$11:$P$40,$V11) -> 0 | Y11: =COUNTIF($E$11:$P$40,$Z11) -> 0 | Z11: 国半
C12: =C11+1 -> 2021-04-02 | V12: 社会 | W12: 0 | X12: 0 | Y12: 0 | Z12: 社半
C13: 2021-04-03 | V13: 算数 | W13: 0 | X13: 0 | Y13: 0 | Z13: 算半
C14: 2021-04-04 | V14: 理科 | W14: 0 | X14: 0 | Y14: 0 | Z14: 理半
C15: 2021-04-05 | V15: 生活 | W15: 0 | X15: 0 | Y15: 0 | Z15: 生半
C16: 2021-04-06 | D16: =TEXT(C16,"aaa") -> 火 | V16: 音楽 | W16: 0 | X16: 0 | Y16: 0 | Z16: 音半
C17: 2021-04-07 | D17: =TEXT(C17,"aaa") -> 水 | V17: 図工 | W17: 0 | X17: 0 | Y17: 0 | Z17: 図半
C18: 2021-04-08 | D18: =TEXT(C18,"aaa") -> 木 | V18: 家庭 | W18: 0 | X18: 0 | Y18: 0 | Z18: 家半
C19: 2021-04-09 | D19: 金 | V19: 体育 | W19: 0 | X19: 0 | Y19: 0 | Z19: 体半
C20: 2021-04-10 | D20: 土 | V20: 英語 | W20: =X20+Y20*0.5+U20 -> 0 | X20: 0 | Y20: 0 | Z20: 英半
C21: 2021-04-11 | D21: 日 | V21: 道徳 | W21: =X21+Y21*0.5+U21 -> 0 | X21: =COUNTIF($E$11:$P$40,$V21) -> 0 | Y21: =COUNTIF($E$11:$P$40,$Z21) -> 0 | Z21: 道半
C22: 2021-04-12 | D22: 月 | V22: 外国 | W22: =X22+Y22*0.5+U22 -> 0 | X22: =COUNTIF($E$11:$P$40,$V22) -> 0 | Y22: =COUNTIF($E$11:$P$40,$Z22) -> 0 | Z22: 外半
C23: 2021-04-13 | D23: 火 | V23: 総合 | W23: =X23+Y23*0.5+U23 -> 0 | X23: =COUNTIF($E$11:$P$40,$V23) -> 0 | Y23: =COUNTIF($E$11:$P$40,$Z23) -> 0 | Z23: 総半
C24: 2021-04-14 | D24: 水 | T24: 特活 | V24: 特活 | W24: =X24+Y24*0.5+U24 -> 0 | X24: =COUNTIF($E$11:$P$40,$V24) -> 0 | Y24: =COUNTIF($E$11:$P$40,$Z24) -> 0 | Z24: 特半
C25: 2021-04-15 | D25: 木 | V25: 合計 | W25: =SUM(W11:W24) -> 0
C26: 2021-04-16 | D26: 金 | V26: 学校 | W26: =X26+Y26*0.5+U26 -> 0 | X26: =COUNTIF($E$11:$P$40,$V26) -> 0 | Y26: =COUNTIF($E$11:$P$40,$Z26) -> 0 | Z26: 学半
C27: 2021-04-17 | D27: 土 | V27: 委員 | W27: =X27+Y27*0.5+U27 -> 0 | X27: =COUNTIF($E$11:$P$40,$V27) -> 0 | Y27: =COUNTIF($E$11:$P$40,$Z27) -> 0 | Z27: 委半
C28: 2021-04-18 | D28: 日
C29: 2021-04-19 | D29: 月
C30: 2021-04-20 | D30: 火
C31: 2021-04-21 | D31: 水
C32: 2021-04-22 | D32: 木
C33: 2021-04-23 | D33: 金
C34: 2021-04-24 | D34: 土
C35: 2021-04-25 | D35: 日
C36: 2021-04-26 | D36: 月
C37: 2021-04-27 | D37: 火
C38: 2021-04-28 | D38: 水
C39: 2021-04-29 | D39: 木
C40: =C39+1 -> 2021-04-30 | D40: 金
R95: =SUM(Q66:Q95) -> 0

Sheet 5月
B1: 5 | C1: 月 | D1: 時間割変更があれば入力 | AO1: 国語 | AP1: 社会 | AQ1: 算数 | AR1: 理科 | AS1: 生活 | AT1: 音楽 | AU1: 図工 | AV1: 家庭 | AW1: 体育 | AX1: 英語 | AY1: 道徳 | AZ1: 外国 | BA1: 総合 | BB1: 特活 | BC1: 委員 | BD1: 学校 | BE1: 国半 | BF1: 社半 | BG1: 算半 | BH1: 理半 | BI1: 生半 | BJ1: 音半 | BK1: 図半 | BL1: 家半 | BM1: 体半 | BN1: 英半 | BO1: 道半 | BP1: 外半 | BQ1: 総半 | BR1: 特半 | BS1: 委半 | BT1: 学半
C2: A | D2: 月 | E2: 火 | F2: 水 | G2: 木 | H2: 金 | J2: B | K2: 月 | L2: 火 | M2: 水 | N2: 木 | O2: 金 | AO2: リスト範囲
C3: 1 | D3: ='4月'!D3 -> 国語 | E3: ='4月'!E3 -> 社会 | F3: ='4月'!F3 -> 音楽 | G3: ='4月'!G3 -> 国語 | H3: ='4月'!H3 -> 総合 | J3: 1 | K3: ='4月'!K3 -> 国語 | L3: ='4月'!L3 -> 社会 | M3: ='4月'!M3 -> 音楽 | N3: ='4月'!N3 -> 国語 | O3: ='4月'!O3 -> 総合
C4: 2 | D4: ='4月'!D4 -> 算数 | E4: ='4月'!E4 -> 算数 | F4: ='4月'!F4 -> 社会 | G4: ='4月'!G4 -> 算数 | H4: ='4月'!H4 -> 算数 | J4: 2 | K4: ='4月'!K4 -> 算数 | L4: ='4月'!L4 -> 算数 | M4: ='4月'!M4 -> 社会 | N4: ='4月'!N4 -> 算数 | O4: ='4月'!O4 -> 算数
C5: 3 | D5: ='4月'!D5 -> 理科 | E5: ='4月'!E5 -> 家庭 | F5: ='4月'!F5 -> 英語 | G5: ='4月'!G5 -> 道徳 | H5: ='4月'!H5 -> 国語 | J5: 3 | K5: ='4月'!K5 -> 理科 | L5: ='4月'!L5 -> 図工 | M5: ='4月'!M5 -> 英語 | N5: ='4月'!N5 -> 道徳 | O5: ='4月'!O5 -> 国語
A6: 記入済みセル | C6: 4 | D6: ='4月'!D6 -> 理科 | E6: ='4月'!E6 -> 家庭 | F6: ='4月'!F6 -> 算数 | G6: ='4月'!G6 -> 総合 | H6: ='4月'!H6 -> 音楽 | J6: 4 | K6: ='4月'!K6 -> 理科 | L6: ='4月'!L6 -> 図工 | M6: ='4月'!M6 -> 算数 | N6: ='4月'!N6 -> 総合 | O6: ='4月'!O6 -> 家庭
A7: =COUNTIF(E11:R41,"*?") -> 0 | C7: 5 | D7: ='4月'!D7 -> 社会 | E7: ='4月'!E7 -> 国語 | F7: ='4月'!F7 -> 国語 | G7: ='4月'!G7 -> 理科 | H7: ='4月'!H7 -> 体育 | J7: 5 | K7: ='4月'!K7 -> 社会 | L7: ='4月'!L7 -> 国語 | M7: ='4月'!M7 -> 国語 | N7: ='4月'!N7 -> 理科 | O7: ='4月'!O7 -> 体育
C8: 6 | D8: ='4月'!D8 -> 英語 | E8: ='4月'!E8 -> 体育 | F8: ='4月'!F8 -> 0 | G8: ='4月'!G8 -> 体育 | H8: ='4月'!H8 -> 特活 | J8: 6 | K8: ='4月'!K8 -> 英語 | L8: ='4月'!L8 -> 体育 | M8: ='4月'!M8 -> 0 | N8: ='4月'!N8 -> 体育 | O8: ='4月'!O8 -> 特活
B10: AB | C10: 月日 | D10: 曜日 | E10: 1 | G10: 2 | I10: 3 | K10: 4 | M10: 5 | O10: 6 | Q10: 学校行事 | U10: 追加 | W10: 計 | X10: １h | Y10: 0.5h | AA10: 転記用
C11: =DATE(年度,5,1) -> 2021-05-01 | D11: =TEXT(C11,"aaa") -> 土 | T11: 各教科など | V11: 国語 | W11: =X11+Y11*0.5+U11 -> 0 | X11: =COUNTIF($E$11:$P$41,$V11) -> 0 | Y11: =COUNTIF($E$11:$P$41,$Z11) -> 0 | Z11: 国半
C12: =C11+1 -> 2021-05-02 | D12: =TEXT(C12,"aaa") -> 日 | V12: 社会 | W12: 0 | X12: 0 | Y12: 0 | Z12: 社半
C13: 2021-05-03 | D13: 月 | V13: 算数 | W13: 0 | X13: 0 | Y13: 0 | Z13: 算半
C14: 2021-05-04 | D14: 火 | V14: 理科 | W14: 0 | X14: 0 | Y14: 0 | Z14: 理半
C15: 2021-05-05 | D15: 水 | V15: 生活 | W15: 0 | X15: 0 | Y15: 0 | Z15: 生半
C16: 2021-05-06 | D16: 木 | V16: 音楽 | W16: 0 | X16: 0 | Y16: 0 | Z16: 音半
C17: 2021-05-07 | D17: 金 | V17: 図工 | W17: 0 | X17: 0 | Y17: 0 | Z17: 図半
C18: 2021-05-08 | D18: 土 | V18: 家庭 | W18: 0 | X18: 0 | Y18: 0 | Z18: 家半
C19: 2021-05-09 | D19: 日 | V19: 体育 | W19: 0 | X19: 0 | Y19: 0 | Z19: 体半
C20: 2021-05-10 | D20: 月 | V20: 英語 | W20: 0 | X20: 0 | Y20: 0 | Z20: 英半
C21: =C20+1 -> 2021-05-11 | D21: 火 | V21: 道徳 | W21: =X21+Y21*0.5+U21 -> 0 | X21: 0 | Y21: 0 | Z21: 道半
C22: 2021-05-12 | D22: 水 | V22: 外国 | W22: =X22+Y22*0.5+U22 -> 0 | X22: 0 | Y22: 0 | Z22: 外半
C23: 2021-05-13 | D23: 木 | V23: 総合 | W23: =X23+Y23*0.5+U23 -> 0 | X23: 0 | Y23: 0 | Z23: 総半
C24: 2021-05-14 | D24: 金 | T24: 特活 | V24: 特活 | W24: =X24+Y24*0.5+U24 -> 0 | X24: 0 | Y24: 0 | Z24: 特半
C25: 2021-05-15 | D25: 土 | V25: 合計 | W25: =SUM(W11:W24) -> 0
C26: 2021-05-16 | D26: 日 | V26: 学校 | W26: =X26+Y26*0.5+U26 -> 0 | X26: =COUNTIF($E$11:$P$41,$V26) -> 0 | Y26: =COUNTIF($E$11:$P$41,$Z26) -> 0 | Z26: 学半
C27: 2021-05-17 | D27: 月 | V27: 委員 | W27: =X27+Y27*0.5+U27 -> 0 | X27: =COUNTIF($E$11:$P$41,$V27) -> 0 | Y27: =COUNTIF($E$11:$P$41,$Z27) -> 0 | Z27: 委半
C28: 2021-05-18 | D28: 火
C29: 2021-05-19 | D29: 水
C30: 2021-05-20 | D30: 木
C31: 2021-05-21 | D31: 金
C32: 2021-05-22 | D32: 土
C33: 2021-05-23 | D33: 日
C34: 2021-05-24 | D34: 月
C35: =C34+1 -> 2021-05-25 | D35: 火
C36: 2021-05-26 | D36: 水
C37: 2021-05-27 | D37: 木
C38: 2021-05-28 | D38: 金
C39: 2021-05-29 | D39: 土
C40: 2021-05-30 | D40: 日
C41: =C39+2 -> 2021-05-31 | D41: 月
R96: =SUM(Q67:Q96) -> 0

Sheet 6月
B1: 6 | C1: 月 | D1: 時間割変更があれば入力 | AO1: 国語 | AP1: 社会 | AQ1: 算数 | AR1: 理科 | AS1: 生活 | AT1: 音楽 | AU1: 図工 | AV1: 家庭 | AW1: 体育 | AX1: 英語 | AY1: 道徳 | AZ1: 外国 | BA1: 総合 | BB1: 特活 | BC1: 委員 | BD1: 学校 | BE1: 国半 | BF1: 社半 | BG1: 算半 | BH1: 理半 | BI1: 生半 | BJ1: 音半 | BK1: 図半 | BL1: 家半 | BM1: 体半 | BN1: 英半 | BO1: 道半 | BP1: 外半 | BQ1: 総半 | BR1: 特半 | BS1: 委半 | BT1: 学半
C2: A | D2: 月 | E2: 火 | F2: 水 | G2: 木 | H2: 金 | J2: B | K2: 月 | L2: 火 | M2: 水 | N2: 木 | O2: 金 | AO2: リスト範囲
C3: 1 | D3: ='5月'!D3 -> 国語 | E3: ='5月'!E3 -> 社会 | F3: ='5月'!F3 -> 音楽 | G3: ='5月'!G3 -> 国語 | H3: ='5月'!H3 -> 総合 | J3: 1 | K3: ='5月'!K3 -> 国語 | L3: ='5月'!L3 -> 社会 | M3: ='5月'!M3 -> 音楽 | N3: ='5月'!N3 -> 国語 | O3: ='5月'!O3 -> 総合
C4: 2 | D4: ='5月'!D4 -> 算数 | E4: ='5月'!E4 -> 算数 | F4: ='5月'!F4 -> 社会 | G4: ='5月'!G4 -> 算数 | H4: ='5月'!H4 -> 算数 | J4: 2 | K4: ='5月'!K4 -> 算数 | L4: ='5月'!L4 -> 算数 | M4: ='5月'!M4 -> 社会 | N4: ='5月'!N4 -> 算数 | O4: ='5月'!O4 -> 算数
C5: 3 | D5: ='5月'!D5 -> 理科 | E5: ='5月'!E5 -> 家庭 | F5: ='5月'!F5 -> 英語 | G5: ='5月'!G5 -> 道徳 | H5: ='5月'!H5 -> 国語 | J5: 3 | K5: ='5月'!K5 -> 理科 | L5: ='5月'!L5 -> 図工 | M5: ='5月'!M5 -> 英語 | N5: ='5月'!N5 -> 道徳 | O5: ='5月'!O5 -> 国語
A6: 記入済みセル | C6: 4 | D6: ='5月'!D6 -> 理科 | E6: ='5月'!E6 -> 家庭 | F6: ='5月'!F6 -> 算数 | G6: ='5月'!G6 -> 総合 | H6: ='5月'!H6 -> 音楽 | J6: 4 | K6: ='5月'!K6 -> 理科 | L6: ='5月'!L6 -> 図工 | M6: ='5月'!M6 -> 算数 | N6: ='5月'!N6 -> 総合 | O6: ='5月'!O6 -> 家庭
A7: =COUNTIF(E11:R41,"*?") -> 0 | C7: 5 | D7: ='5月'!D7 -> 社会 | E7: ='5月'!E7 -> 国語 | F7: ='5月'!F7 -> 国語 | G7: ='5月'!G7 -> 理科 | H7: ='5月'!H7 -> 体育 | J7: 5 | K7: ='5月'!K7 -> 社会 | L7: ='5月'!L7 -> 国語 | M7: ='5月'!M7 -> 国語 | N7: ='5月'!N7 -> 理科 | O7: ='5月'!O7 -> 体育
C8: 6 | D8: ='5月'!D8 -> 英語 | E8: ='5月'!E8 -> 体育 | F8: ='5月'!F8 -> 0 | G8: ='5月'!G8 -> 体育 | H8: ='5月'!H8 -> 特活 | J8: 6 | K8: ='5月'!K8 -> 英語 | L8: ='5月'!L8 -> 体育 | M8: ='5月'!M8 -> 0 | N8: ='5月'!N8 -> 体育 | O8: ='5月'!O8 -> 特活
B10: AB | C10: 月日 | D10: 曜日 | E10: 1 | G10: 2 | I10: 3 | K10: 4 | M10: 5 | O10: 6 | Q10: 学校行事 | U10: 追加 | W10: 計 | X10: １h | Y10: 0.5h | AA10: 転記用
B11: A | C11: =DATE(年度,6,1) -> 2021-06-01 | D11: =TEXT(C11,"aaa") -> 火 | T11: 各教科など | V11: 国語 | W11: =X11+Y11*0.5+U11 -> 0 | X11: =COUNTIF($E$11:$P$40,$V11) -> 0 | Y11: =COUNTIF($E$11:$P$40,$Z11) -> 0 | Z11: 国半 | AA11: 34
B12: A | C12: =C11+1 -> 2021-06-02 | D12: =TEXT(C12,"aaa") -> 水 | V12: 社会 | W12: 0 | X12: 0 | Y12: 0 | Z12: 社半 | AA12: 9.5
B13: A | C13: 2021-06-03 | D13: 木 | V13: 算数 | W13: 0 | X13: 0 | Y13: 0 | Z13: 算半 | AA13: 22
B14: A | C14: 2021-06-04 | D14: 金 | V14: 理科 | W14: 0 | X14: 0 | Y14: 0 | Z14: 理半 | AA14: 14
B15: A | C15: 2021-06-05 | D15: 土 | V15: 生活 | W15: 0 | X15: 0 | Y15: 0 | Z15: 生半 | AA15: 0
B16: A | C16: 2021-06-06 | D16: 日 | V16: 音楽 | W16: 0 | X16: 0 | Y16: 0 | Z16: 音半 | AA16: 2
B17: A | C17: 2021-06-07 | D17: 月 | V17: 図工 | W17: 0 | X17: 0 | Y17: 0 | Z17: 図半 | AA17: 4
B18: B | C18: 2021-06-08 | D18: 火 | V18: 家庭 | W18: 0 | X18: 0 | Y18: 0 | Z18: 家半 | AA18: 8
B19: B | C19: 2021-06-09 | D19: 水 | V19: 体育 | W19: 0 | X19: 0 | Y19: 0 | Z19: 体半 | AA19: 13
B20: B | C20: 2021-06-10 | D20: 木 | V20: 英語 | W20: 0 | X20: 0 | Y20: 0 | Z20: 英半 | AA20: 9
B21: B | C21: 2021-06-11 | D21: 金 | V21: 道徳 | W21: =X21+Y21*0.5+U21 -> 0 | X21: =COUNTIF($E$11:$P$40,$V21) -> 0 | Y21: =COUNTIF($E$11:$P$40,$Z21) -> 0 | Z21: 道半 | AA21: 4
B22: B | C22: 2021-06-12 | D22: 土 | V22: 外国 | W22: =X22+Y22*0.5+U22 -> 0 | X22: =COUNTIF($E$11:$P$40,$V22) -> 0 | Y22: =COUNTIF($E$11:$P$40,$Z22) -> 0 | Z22: 外半 | AA22: 0
B23: B | C23: 2021-06-13 | D23: 日 | V23: 総合 | W23: =X23+Y23*0.5+U23 -> 0 | X23: =COUNTIF($E$11:$P$40,$V23) -> 0 | Y23: =COUNTIF($E$11:$P$40,$Z23) -> 0 | Z23: 総半 | AA23: 4.5
B24: B | C24: 2021-06-14 | D24: 月 | T24: 特活 | V24: 特活 | W24: =X24+Y24*0.5+U24 -> 0 | X24: =COUNTIF($E$11:$P$40,$V24) -> 0 | Y24: =COUNTIF($E$11:$P$40,$Z24) -> 0 | Z24: 特半 | AA24: 4
B25: A | C25: 2021-06-15 | D25: 火 | V25: 合計 | W25: =SUM(W11:W24) -> 0 | AA25: 128
B26: A | C26: 2021-06-16 | D26: 水 | V26: 学校 | W26: =X26+Y26*0.5+U26 -> 0 | X26: =COUNTIF($E$11:$P$40,$V26) -> 0 | Y26: =COUNTIF($E$11:$P$40,$Z26) -> 0 | Z26: 学半 | AA26: 0
B27: A | C27: 2021-06-17 | D27: 木 | V27: 委員 | W27: =X27+Y27*0.5+U27 -> 0 | X27: =COUNTIF($E$11:$P$40,$V27) -> 0 | Y27: =COUNTIF($E$11:$P$40,$Z27) -> 0 | Z27: 委半 | AA27: 0
B28: A | C28: 2021-06-18 | D28: 金
B29: A | C29: 2021-06-19 | D29: 土
B30: A | C30: 2021-06-20 | D30: 日
B31: A | C31: 2021-06-21 | D31: 月
B32: B | C32: 2021-06-22 | D32: 火
B33: B | C33: 2021-06-23 | D33: 水
B34: B | C34: 2021-06-24 | D34: 木
B35: B | C35: 2021-06-25 | D35: 金
B36: B | C36: 2021-06-26 | D36: 土
B37: B | C37: 2021-06-27 | D37: 日
B38: B | C38: 2021-06-28 | D38: 月
B39: A | C39: 2021-06-29 | D39: 火
B40: A | C40: =C39+1 -> 2021-06-30 | D40: 水
R95: =SUM(Q66:Q95) -> 0

Sheet 7月
B1: 7 | C1: 月 | D1: 時間割変更があれば入力 | AO1: 国語 | AP1: 社会 | AQ1: 算数 | AR1: 理科 | AS1: 生活 | AT1: 音楽 | AU1: 図工 | AV1: 家庭 | AW1: 体育 | AX1: 英語 | AY1: 道徳 | AZ1: 外国 | BA1: 総合 | BB1: 特活 | BC1: 委員 | BD1: 学校 | BE1: 国半 | BF1: 社半 | BG1: 算半 | BH1: 理半 | BI1: 生半 | BJ1: 音半 | BK1: 図半 | BL1: 家半 | BM1: 体半 | BN1: 英半 | BO1: 道半 | BP1: 外半 | BQ1: 総半 | BR1: 特半 | BS1: 委半 | BT1: 学半
C2: A | D2: 月 | E2: 火 | F2: 水 | G2: 木 | H2: 金 | J2: B | K2: 月 | L2: 火 | M2: 水 | N2: 木 | O2: 金 | AO2: リスト範囲
C3: 1 | D3: ='6月'!D3 -> 国語 | E3: ='6月'!E3 -> 社会 | F3: ='6月'!F3 -> 音楽 | G3: ='6月'!G3 -> 国語 | H3: ='6月'!H3 -> 総合 | J3: 1 | K3: ='6月'!K3 -> 国語 | L3: ='6月'!L3 -> 社会 | M3: ='6月'!M3 -> 音楽 | N3: ='6月'!N3 -> 国語 | O3: ='6月'!O3 -> 総合
C4: 2 | D4: ='6月'!D4 -> 算数 | E4: ='6月'!E4 -> 算数 | F4: ='6月'!F4 -> 社会 | G4: ='6月'!G4 -> 算数 | H4: ='6月'!H4 -> 算数 | J4: 2 | K4: ='6月'!K4 -> 算数 | L4: ='6月'!L4 -> 算数 | M4: ='6月'!M4 -> 社会 | N4: ='6月'!N4 -> 算数 | O4: ='6月'!O4 -> 算数
C5: 3 | D5: ='6月'!D5 -> 理科 | E5: ='6月'!E5 -> 家庭 | F5: ='6月'!F5 -> 英語 | G5: ='6月'!G5 -> 道徳 | H5: ='6月'!H5 -> 国語 | J5: 3 | K5: ='6月'!K5 -> 理科 | L5: ='6月'!L5 -> 図工 | M5: ='6月'!M5 -> 英語 | N5: ='6月'!N5 -> 道徳 | O5: ='6月'!O5 -> 国語
A6: 記入済みセル | C6: 4 | D6: ='6月'!D6 -> 理科 | E6: ='6月'!E6 -> 家庭 | F6: ='6月'!F6 -> 算数 | G6: ='6月'!G6 -> 総合 | H6: ='6月'!H6 -> 音楽 | J6: 4 | K6: ='6月'!K6 -> 理科 | L6: ='6月'!L6 -> 図工 | M6: ='6月'!M6 -> 算数 | N6: ='6月'!N6 -> 総合 | O6: ='6月'!O6 -> 家庭
A7: =COUNTIF(E11:R41,"*?") -> 0 | C7: 5 | D7: ='6月'!D7 -> 社会 | E7: ='6月'!E7 -> 国語 | F7: ='6月'!F7 -> 国語 | G7: ='6月'!G7 -> 理科 | H7: ='6月'!H7 -> 体育 | J7: 5 | K7: ='6月'!K7 -> 社会 | L7: ='6月'!L7 -> 国語 | M7: ='6月'!M7 -> 国語 | N7: ='6月'!N7 -> 理科 | O7: ='6月'!O7 -> 体育
C8: 6 | D8: ='6月'!D8 -> 英語 | E8: ='6月'!E8 -> 体育 | F8: ='6月'!F8 -> 0 | G8: ='6月'!G8 -> 体育 | H8: ='6月'!H8 -> 特活 | J8: 6 | K8: ='6月'!K8 -> 英語 | L8: ='6月'!L8 -> 体育 | M8: ='6月'!M8 -> 0 | N8: ='6月'!N8 -> 体育 | O8: ='6月'!O8 -> 特活
B10: AB | C10: 月日 | D10: 曜日 | E10: 1 | G10: 2 | I10: 3 | K10: 4 | M10: 5 | O10: 6 | Q10: 学校行事 | U10: 追加 | W10: 計 | X10: １h | Y10: 0.5h | AA10: 転記用
C11: =DATE(年度,7,1) -> 2021-07-01 | D11: =TEXT(C11,"aaa") -> 木 | T11: 各教科など | V11: 国語 | W11: =X11+Y11*0.5+U11 -> 0 | X11: =COUNTIF($E$11:$P$41,$V11) -> 0 | Y11: =COUNTIF($E$11:$P$41,$Z11) -> 0 | Z11: 国半
C12: =C11+1 -> 2021-07-02 | D12: =TEXT(C12,"aaa") -> 金 | V12: 社会 | W12: 0 | X12: 0 | Y12: 0 | Z12: 社半
C13: 2021-07-03 | D13: 土 | V13: 算数 | W13: 0 | X13: 0 | Y13: 0 | Z13: 算半
C14: 2021-07-04 | D14: 日 | V14: 理科 | W14: 0 | X14: 0 | Y14: 0 | Z14: 理半
C15: 2021-07-05 | D15: 月 | V15: 生活 | W15: 0 | X15: 0 | Y15: 0 | Z15: 生半
C16: 2021-07-06 | D16: 火 | V16: 音楽 | W16: 0 | X16: 0 | Y16: 0 | Z16: 音半
C17: 2021-07-07 | D17: 水 | V17: 図工 | W17: 0 | X17: 0 | Y17: 0 | Z17: 図半
C18: 2021-07-08 | D18: 木 | V18: 家庭 | W18: 0 | X18: 0 | Y18: 0 | Z18: 家半
C19: 2021-07-09 | D19: 金 | V19: 体育 | W19: 0 | X19: 0 | Y19: 0 | Z19: 体半
C20: 2021-07-10 | D20: 土 | V20: 英語 | W20: 0 | X20: 0 | Y20: 0 | Z20: 英半
C21: 2021-07-11 | D21: 日 | V21: 道徳 | W21: =X21+Y21*0.5+U21 -> 0 | X21: 0 | Y21: 0 | Z21: 道半
C22: 2021-07-12 | D22: 月 | V22: 外国 | W22: =X22+Y22*0.5+U22 -> 0 | X22: 0 | Y22: 0 | Z22: 外半
C23: 2021-07-13 | D23: 火 | V23: 総合 | W23: =X23+Y23*0.5+U23 -> 0 | X23: 0 | Y23: 0 | Z23: 総半
C24: 2021-07-14 | D24: 水 | T24: 特活 | V24: 特活 | W24: =X24+Y24*0.5+U24 -> 0 | X24: 0 | Y24: 0 | Z24: 特半
C25: 2021-07-15 | D25: 木 | V25: 合計 | W25: =SUM(W11:W24) -> 0
C26: 2021-07-16 | D26: 金 | V26: 学校 | W26: =X26+Y26*0.5+U26 -> 0 | X26: =COUNTIF($E$11:$P$41,$V26) -> 0 | Y26: =COUNTIF($E$11:$P$41,$Z26) -> 0 | Z26: 学半
C27: 2021-07-17 | D27: 土 | V27: 委員 | W27: =X27+Y27*0.5+U27 -> 0 | X27: =COUNTIF($E$11:$P$41,$V27) -> 0 | Y27: =COUNTIF($E$11:$P$41,$Z27) -> 0 | Z27: 委半
C28: 2021-07-18 | D28: 日
C29: 2021-07-19 | D29: 月
C30: 2021-07-20 | D30: 火
C31: 2021-07-21 | D31: 水
C32: 2021-07-22 | D32: 木
C33: 2021-07-23 | D33: 金
C34: 2021-07-24 | D34: 土
C35: 2021-07-25 | D35: 日
C36: 2021-07-26 | D36: 月
C37: 2021-07-27 | D37: 火
C38: 2021-07-28 | D38: 水
C39: 2021-07-29 | D39: 木
C40: =C39+1 -> 2021-07-30 | D40: 金
C41: =C40+1 -> 2021-07-31 | D41: 土
R96: =SUM(Q67:Q96) -> 0

Sheet 8月
B1: 8 | C1: 月 | D1: 時間割変更があれば入力 | AO1: 国語 | AP1: 社会 | AQ1: 算数 | AR1: 理科 | AS1: 生活 | AT1: 音楽 | AU1: 図工 | AV1: 家庭 | AW1: 体育 | AX1: 英語 | AY1: 道徳 | AZ1: 外国 | BA1: 総合 | BB1: 特活 | BC1: 委員 | BD1: 学校 | BE1: 国半 | BF1: 社半 | BG1: 算半 | BH1: 理半 | BI1: 生半 | BJ1: 音半 | BK1: 図半 | BL1: 家半 | BM1: 体半 | BN1: 英半 | BO1: 道半 | BP1: 外半 | BQ1: 総半 | BR1: 特半 | BS1: 委半 | BT1: 学半
C2: A | D2: 月 | E2: 火 | F2: 水 | G2: 木 | H2: 金 | J2: B | K2: 月 | L2: 火 | M2: 水 | N2: 木 | O2: 金 | AO2: リスト範囲
C3: 1 | D3: ='7月'!D3 -> 国語 | E3: ='7月'!E3 -> 社会 | F3: ='7月'!F3 -> 音楽 | G3: ='7月'!G3 -> 国語 | H3: ='7月'!H3 -> 総合 | J3: 1 | K3: ='7月'!K3 -> 国語 | L3: ='7月'!L3 -> 社会 | M3: ='7月'!M3 -> 音楽 | N3: ='7月'!N3 -> 国語 | O3: ='7月'!O3 -> 総合
C4: 2 | D4: ='7月'!D4 -> 算数 | E4: ='7月'!E4 -> 算数 | F4: ='7月'!F4 -> 社会 | G4: ='7月'!G4 -> 算数 | H4: ='7月'!H4 -> 算数 | J4: 2 | K4: ='7月'!K4 -> 算数 | L4: ='7月'!L4 -> 算数 | M4: ='7月'!M4 -> 社会 | N4: ='7月'!N4 -> 算数 | O4: ='7月'!O4 -> 算数
C5: 3 | D5: ='7月'!D5 -> 理科 | E5: ='7月'!E5 -> 家庭 | F5: ='7月'!F5 -> 英語 | G5: ='7月'!G5 -> 道徳 | H5: ='7月'!H5 -> 国語 | J5: 3 | K5: ='7月'!K5 -> 理科 | L5: ='7月'!L5 -> 図工 | M5: ='7月'!M5 -> 英語 | N5: ='7月'!N5 -> 道徳 | O5: ='7月'!O5 -> 国語
A6: 記入済みセル | C6: 4 | D6: ='7月'!D6 -> 理科 | E6: ='7月'!E6 -> 家庭 | F6: ='7月'!F6 -> 算数 | G6: ='7月'!G6 -> 総合 | H6: ='7月'!H6 -> 音楽 | J6: 4 | K6: ='7月'!K6 -> 理科 | L6: ='7月'!L6 -> 図工 | M6: ='7月'!M6 -> 算数 | N6: ='7月'!N6 -> 総合 | O6: ='7月'!O6 -> 家庭
A7: =COUNTIF(E11:R41,"*?") -> 0 | C7: 5 | D7: ='7月'!D7 -> 社会 | E7: ='7月'!E7 -> 国語 | F7: ='7月'!F7 -> 国語 | G7: ='7月'!G7 -> 理科 | H7: ='7月'!H7 -> 体育 | J7: 5 | K7: ='7月'!K7 -> 社会 | L7: ='7月'!L7 -> 国語 | M7: ='7月'!M7 -> 国語 | N7: ='7月'!N7 -> 理科 | O7: ='7月'!O7 -> 体育
C8: 6 | D8: ='7月'!D8 -> 英語 | E8: ='7月'!E8 -> 体育 | F8: ='7月'!F8 -> 0 | G8: ='7月'!G8 -> 体育 | H8: ='7月'!H8 -> 特活 | J8: 6 | K8: ='7月'!K8 -> 英語 | L8: ='7月'!L8 -> 体育 | M8: ='7月'!M8 -> 0 | N8: ='7月'!N8 -> 体育 | O8: ='7月'!O8 -> 特活
B10: AB | C10: 月日 | D10: 曜日 | E10: 1 | G10: 2 | I10: 3 | K10: 4 | M10: 5 | O10: 6 | Q10: 学校行事 | U10: 追加 | W10: 計 | X10: １h | Y10: 0.5h | AA10: 転記用
C11: =DATE(年度,8,1) -> 2021-08-01 | D11: =TEXT(C11,"aaa") -> 日 | T11: 各教科など | V11: 国語 | W11: =X11+Y11*0.5+U11 -> 0 | X11: =COUNTIF($E$11:$P$41,$V11) -> 0 | Y11: =COUNTIF($E$11:$P$41,$Z11) -> 0 | Z11: 国半
C12: =C11+1 -> 2021-08-02 | D12: 月 | V12: 社会 | W12: 0 | X12: 0 | Y12: 0 | Z12: 社半
C13: 2021-08-03 | D13: 火 | V13: 算数 | W13: 0 | X13: 0 | Y13: 0 | Z13: 算半
C14: 2021-08-04 | D14: 水 | V14: 理科 | W14: 0 | X14: 0 | Y14: 0 | Z14: 理半
C15: 2021-08-05 | D15: 木 | V15: 生活 | W15: 0 | X15: 0 | Y15: 0 | Z15: 生半
C16: 2021-08-06 | D16: 金 | V16: 音楽 | W16: 0 | X16: 0 | Y16: 0 | Z16: 音半
C17: 2021-08-07 | D17: 土 | V17: 図工 | W17: 0 | X17: 0 | Y17: 0 | Z17: 図半
C18: 2021-08-08 | D18: 日 | V18: 家庭 | W18: 0 | X18: 0 | Y18: 0 | Z18: 家半
C19: 2021-08-09 | D19: 月 | V19: 体育 | W19: 0 | X19: 0 | Y19: 0 | Z19: 体半
C20: 2021-08-10 | D20: 火 | V20: 英語 | W20: 0 | X20: 0 | Y20: 0 | Z20: 英半
C21: 2021-08-11 | D21: 水 | V21: 道徳 | W21: =X21+Y21*0.5+U21 -> 0 | X21: 0 | Y21: 0 | Z21: 道半
C22: 2021-08-12 | D22: 木 | V22: 外国 | W22: =X22+Y22*0.5+U22 -> 0 | X22: 0 | Y22: 0 | Z22: 外半
C23: 2021-08-13 | D23: 金 | V23: 総合 | W23: =X23+Y23*0.5+U23 -> 0 | X23: 0 | Y23: 0 | Z23: 総半
C24: 2021-08-14 | D24: 土 | T24: 特活 | V24: 特活 | W24: =X24+Y24*0.5+U24 -> 0 | X24: 0 | Y24: 0 | Z24: 特半
C25: 2021-08-15 | D25: 日 | V25: 合計 | W25: =SUM(W11:W24) -> 0
C26: 2021-08-16 | D26: 月 | V26: 学校 | W26: =X26+Y26*0.5+U26 -> 0 | X26: =COUNTIF($E$11:$P$41,$V26) -> 0 | Y26: =COUNTIF($E$11:$P$41,$Z26) -> 0 | Z26: 学半
C27: 2021-08-17 | D27: 火 | V27: 委員 | W27: =X27+Y27*0.5+U27 -> 0 | X27: =COUNTIF($E$11:$P$41,$V27) -> 0 | Y27: =COUNTIF($E$11:$P$41,$Z27) -> 0 | Z27: 委半
C28: 2021-08-18 | D28: 水
C29: 2021-08-19 | D29: 木
C30: 2021-08-20 | D30: 金
C31: 2021-08-21 | D31: 土
C32: 2021-08-22 | D32: 日
C33: 2021-08-23 | D33: 月
C34: 2021-08-24 | D34: 火
C35: 2021-08-25 | D35: =TEXT(C35,"aaa") -> 水
C36: 2021-08-26 | D36: =TEXT(C36,"aaa") -> 木
C37: 2021-08-27 | D37: =TEXT(C37,"aaa") -> 金
C38: 2021-08-28 | D38: 土
C39: 2021-08-29 | D39: 日
C40: =C39+1 -> 2021-08-30 | D40: 月
C41: =C40+1 -> 2021-08-31 | D41: 火
R96: =SUM(Q67:Q96) -> 0

Sheet 9月
B1: 9 | C1: 月 | D1: 時間割変更があれば入力 | AO1: 国語 | AP1: 社会 | AQ1: 算数 | AR1: 理科 | AS1: 生活 | AT1: 音楽 | AU1: 図工 | AV1: 家庭 | AW1: 体育 | AX1: 英語 | AY1: 道徳 | AZ1: 外国 | BA1: 総合 | BB1: 特活 | BC1: 委員 | BD1: 学校 | BE1: 国半 | BF1: 社半 | BG1: 算半 | BH1: 理半 | BI1: 生半 | BJ1: 音半 | BK1: 図半 | BL1: 家半 | BM1: 体半 | BN1: 英半 | BO1: 道半 | BP1: 外半 | BQ1: 総半 | BR1: 特半 | BS1: 委半 | BT1: 学半
C2: A | D2: 月 | E2: 火 | F2: 水 | G2: 木 | H2: 金 | J2: B | K2: 月 | L2: 火 | M2: 水 | N2: 木 | O2: 金 | AO2: リスト範囲
C3: 1 | D3: ='7月'!D3 -> 国語 | E3: ='7月'!E3 -> 社会 | F3: ='7月'!F3 -> 音楽 | G3: ='7月'!G3 -> 国語 | H3: ='7月'!H3 -> 総合 | J3: 1 | K3: ='7月'!K3 -> 国語 | L3: ='7月'!L3 -> 社会 | M3: ='7月'!M3 -> 音楽 | N3: ='7月'!N3 -> 国語 | O3: ='7月'!O3 -> 総合
C4: 2 | D4: ='7月'!D4 -> 算数 | E4: ='7月'!E4 -> 算数 | F4: ='7月'!F4 -> 社会 | G4: ='7月'!G4 -> 算数 | H4: ='7月'!H4 -> 算数 | J4: 2 | K4: ='7月'!K4 -> 算数 | L4: ='7月'!L4 -> 算数 | M4: ='7月'!M4 -> 社会 | N4: ='7月'!N4 -> 算数 | O4: ='7月'!O4 -> 算数
C5: 3 | D5: ='7月'!D5 -> 理科 | E5: ='7月'!E5 -> 家庭 | F5: ='7月'!F5 -> 英語 | G5: ='7月'!G5 -> 道徳 | H5: ='7月'!H5 -> 国語 | J5: 3 | K5: ='7月'!K5 -> 理科 | L5: ='7月'!L5 -> 図工 | M5: ='7月'!M5 -> 英語 | N5: ='7月'!N5 -> 道徳 | O5: ='7月'!O5 -> 国語
A6: 記入済みセル | C6: 4 | D6: ='7月'!D6 -> 理科 | E6: ='7月'!E6 -> 家庭 | F6: ='7月'!F6 -> 算数 | G6: ='7月'!G6 -> 総合 | H6: ='7月'!H6 -> 音楽 | J6: 4 | K6: ='7月'!K6 -> 理科 | L6: ='7月'!L6 -> 図工 | M6: ='7月'!M6 -> 算数 | N6: ='7月'!N6 -> 総合 | O6: ='7月'!O6 -> 家庭
A7: =COUNTIF(E11:R41,"*?") -> 0 | C7: 5 | D7: ='7月'!D7 -> 社会 | E7: ='7月'!E7 -> 国語 | F7: ='7月'!F7 -> 国語 | G7: ='7月'!G7 -> 理科 | H7: ='7月'!H7 -> 体育 | J7: 5 | K7: ='7月'!K7 -> 社会 | L7: ='7月'!L7 -> 国語 | M7: ='7月'!M7 -> 国語 | N7: ='7月'!N7 -> 理科 | O7: ='7月'!O7 -> 体育
C8: 6 | D8: ='7月'!D8 -> 英語 | E8: ='7月'!E8 -> 体育 | F8: ='7月'!F8 -> 0 | G8: ='7月'!G8 -> 体育 | H8: ='7月'!H8 -> 特活 | J8: 6 | K8: ='7月'!K8 -> 英語 | L8: ='7月'!L8 -> 体育 | M8: ='7月'!M8 -> 0 | N8: ='7月'!N8 -> 体育 | O8: ='7月'!O8 -> 特活
B10: AB | C10: 月日 | D10: 曜日 | E10: 1 | G10: 2 | I10: 3 | K10: 4 | M10: 5 | O10: 6 | Q10: 学校行事 | U10: 追加 | W10: 計 | X10: １h | Y10: 0.5h | AA10: 転記用
C11: =DATE(年度,9,1) -> 2021-09-01 | D11: =TEXT(C11,"aaa") -> 水 | T11: 各教科など | V11: 国語 | W11: =X11+Y11*0.5+U11 -> 0 | X11: =COUNTIF($E$11:$P$40,$V11) -> 0 | Y11: =COUNTIF($E$11:$P$40,$Z11) -> 0 | Z11: 国半 | AA11: 34
C12: =C11+1 -> 2021-09-02 | D12: =TEXT(C12,"aaa") -> 木 | V12: 社会 | W12: 0 | X12: 0 | Y12: 0 | Z12: 社半 | AA12: 8
C13: 2021-09-03 | D13: 金 | V13: 算数 | W13: 0 | X13: 0 | Y13: 0 | Z13: 算半 | AA13: 22
C14: 2021-09-04 | D14: 土 | V14: 理科 | W14: 0 | X14: 0 | Y14: 0 | Z14: 理半 | AA14: 10
C15: 2021-09-05 | D15: 日 | V15: 生活 | W15: 0 | X15: 0 | Y15: 0 | Z15: 生半 | AA15: 0
C16: 2021-09-06 | D16: 月 | V16: 音楽 | W16: 0 | X16: 0 | Y16: 0 | Z16: 音半 | AA16: 2
C17: 2021-09-07 | D17: 火 | V17: 図工 | W17: 0 | X17: 0 | Y17: 0 | Z17: 図半 | AA17: 6
C18: 2021-09-08 | D18: 水 | V18: 家庭 | W18: 0 | X18: 0 | Y18: 0 | Z18: 家半 | AA18: 4
C19: 2021-09-09 | D19: 木 | V19: 体育 | W19: 0 | X19: 0 | Y19: 0 | Z19: 体半 | AA19: 4
C20: 2021-09-10 | D20: 金 | V20: 英語 | W20: 0 | X20: 0 | Y20: 0 | Z20: 英半 | AA20: 8
C21: 2021-09-11 | D21: 土 | V21: 道徳 | W21: =X21+Y21*0.5+U21 -> 0 | X21: =COUNTIF($E$11:$P$40,$V21) -> 0 | Y21: =COUNTIF($E$11:$P$40,$Z21) -> 0 | Z21: 道半 | AA21: 4
C22: 2021-09-12 | D22: 日 | V22: 外国 | W22: =X22+Y22*0.5+U22 -> 0 | X22: =COUNTIF($E$11:$P$40,$V22) -> 0 | Y22: =COUNTIF($E$11:$P$40,$Z22) -> 0 | Z22: 外半 | AA22: 4
C23: 2021-09-13 | D23: 月 | V23: 総合 | W23: =X23+Y23*0.5+U23 -> 0 | X23: =COUNTIF($E$11:$P$40,$V23) -> 0 | Y23: =COUNTIF($E$11:$P$40,$Z23) -> 0 | Z23: 総半 | AA23: 0
C24: 2021-09-14 | D24: 火 | T24: 特活 | V24: 特活 | W24: =X24+Y24*0.5+U24 -> 0 | X24: =COUNTIF($E$11:$P$40,$V24) -> 0 | Y24: =COUNTIF($E$11:$P$40,$Z24) -> 0 | Z24: 特半 | AA24: 4
C25: 2021-09-15 | D25: 水 | V25: 合計 | W25: =SUM(W11:W24) -> 0 | AA25: 110
C26: 2021-09-16 | D26: 木 | V26: 学校 | W26: =X26+Y26*0.5+U26 -> 0 | X26: =COUNTIF($E$11:$P$40,$V26) -> 0 | Y26: =COUNTIF($E$11:$P$40,$Z26) -> 0 | Z26: 学半
C27: 2021-09-17 | D27: 金 | V27: 委員 | W27: =X27+Y27*0.5+U27 -> 0 | X27: =COUNTIF($E$11:$P$40,$V27) -> 0 | Y27: =COUNTIF($E$11:$P$40,$Z27) -> 0 | Z27: 委半
C28: 2021-09-18 | D28: 土
C29: 2021-09-19 | D29: 日
C30: 2021-09-20 | D30: 月
C31: 2021-09-21 | D31: 火
C32: 2021-09-22 | D32: 水
C33: 2021-09-23 | D33: 木
C34: 2021-09-24 | D34: 金
C35: 2021-09-25 | D35: 土
C36: 2021-09-26 | D36: 日
C37: 2021-09-27 | D37: 月
C38: 2021-09-28 | D38: 火
C39: 2021-09-29 | D39: 水
C40: =C39+1 -> 2021-09-30 | D40: 木
R96: =SUM(Q67:Q96) -> 0

Sheet 10月
B1: 10 | C1: 月 | D1: 時間割変更があれば入力 | AO1: 国語 | AP1: 社会 | AQ1: 算数 | AR1: 理科 | AS1: 生活 | AT1: 音楽 | AU1: 図工 | AV1: 家庭 | AW1: 体育 | AX1: 英語 | AY1: 道徳 | AZ1: 外国 | BA1: 総合 | BB1: 特活 | BC1: 委員 | BD1: 学校 | BE1: 国半 | BF1: 社半 | BG1: 算半 | BH1: 理半 | BI1: 生半 | BJ1: 音半 | BK1: 図半 | BL1: 家半 | BM1: 体半 | BN1: 英半 | BO1: 道半 | BP1: 外半 | BQ1: 総半 | BR1: 特半 | BS1: 委半 | BT1: 学半
C2: A | D2: 月 | E2: 火 | F2: 水 | G2: 木 | H2: 金 | J2: B | K2: 月 | L2: 火 | M2: 水 | N2: 木 | O2: 金 | AO2: リスト範囲
C3: 1 | D3: ='9月'!D3 -> 国語 | E3: ='9月'!E3 -> 社会 | F3: ='9月'!F3 -> 音楽 | G3: ='9月'!G3 -> 国語 | H3: ='9月'!H3 -> 総合 | J3: 1 | K3: ='9月'!K3 -> 国語 | L3: ='9月'!L3 -> 社会 | M3: ='9月'!M3 -> 音楽 | N3: ='9月'!N3 -> 国語 | O3: ='9月'!O3 -> 総合
C4: 2 | D4: ='9月'!D4 -> 算数 | E4: ='9月'!E4 -> 算数 | F4: ='9月'!F4 -> 社会 | G4: ='9月'!G4 -> 算数 | H4: ='9月'!H4 -> 算数 | J4: 2 | K4: ='9月'!K4 -> 算数 | L4: ='9月'!L4 -> 算数 | M4: ='9月'!M4 -> 社会 | N4: ='9月'!N4 -> 算数 | O4: ='9月'!O4 -> 算数
C5: 3 | D5: ='9月'!D5 -> 理科 | E5: ='9月'!E5 -> 家庭 | F5: ='9月'!F5 -> 英語 | G5: ='9月'!G5 -> 道徳 | H5: ='9月'!H5 -> 国語 | J5: 3 | K5: ='9月'!K5 -> 理科 | L5: ='9月'!L5 -> 図工 | M5: ='9月'!M5 -> 英語 | N5: ='9月'!N5 -> 道徳 | O5: ='9月'!O5 -> 国語
A6: 記入済みセル | C6: 4 | D6: ='9月'!D6 -> 理科 | E6: ='9月'!E6 -> 家庭 | F6: ='9月'!F6 -> 算数 | G6: ='9月'!G6 -> 総合 | H6: ='9月'!H6 -> 音楽 | J6: 4 | K6: ='9月'!K6 -> 理科 | L6: ='9月'!L6 -> 図工 | M6: ='9月'!M6 -> 算数 | N6: ='9月'!N6 -> 総合 | O6: ='9月'!O6 -> 家庭
A7: =COUNTIF(E11:R41,"*?") -> 0 | C7: 5 | D7: ='9月'!D7 -> 社会 | E7: ='9月'!E7 -> 国語 | F7: ='9月'!F7 -> 国語 | G7: ='9月'!G7 -> 理科 | H7: ='9月'!H7 -> 体育 | J7: 5 | K7: ='9月'!K7 -> 社会 | L7: ='9月'!L7 -> 国語 | M7: ='9月'!M7 -> 国語 | N7: ='9月'!N7 -> 理科 | O7: ='9月'!O7 -> 体育
C8: 6 | D8: ='9月'!D8 -> 英語 | E8: ='9月'!E8 -> 体育 | F8: ='9月'!F8 -> 0 | G8: ='9月'!G8 -> 体育 | H8: ='9月'!H8 -> 特活 | J8: 6 | K8: ='9月'!K8 -> 英語 | L8: ='9月'!L8 -> 体育 | M8: ='9月'!M8 -> 0 | N8: ='9月'!N8 -> 体育 | O8: ='9月'!O8 -> 特活
B10: AB | C10: 月日 | D10: 曜日 | E10: 1 | G10: 2 | I10: 3 | K10: 4 | M10: 5 | O10: 6 | Q10: 学校行事 | U10: 追加 | W10: 計 | X10: １h | Y10: 0.5h | AA10: 転記用
C11: =DATE(年度,10,1) -> 2021-10-01 | D11: =TEXT(C11,"aaa") -> 金 | T11: 各教科など | V11: 国語 | W11: =X11+Y11*0.5+U11 -> 0 | X11: =COUNTIF($E$11:$P$41,$V11) -> 0 | Y11: =COUNTIF($E$11:$P$41,$Z11) -> 0 | Z11: 国半
C12: =C11+1 -> 2021-10-02 | D12: 土 | V12: 社会 | W12: 0 | X12: 0 | Y12: 0 | Z12: 社半
C13: 2021-10-03 | D13: 日 | V13: 算数 | W13: 0 | X13: 0 | Y13: 0 | Z13: 算半
C14: 2021-10-04 | D14: 月 | V14: 理科 | W14: 0 | X14: 0 | Y14: 0 | Z14: 理半
C15: 2021-10-05 | D15: 火 | V15: 生活 | W15: 0 | X15: 0 | Y15: 0 | Z15: 生半
C16: 2021-10-06 | D16: 水 | V16: 音楽 | W16: 0 | X16: 0 | Y16: 0 | Z16: 音半
C17: 2021-10-07 | D17: 木 | V17: 図工 | W17: 0 | X17: 0 | Y17: 0 | Z17: 図半
C18: 2021-10-08 | D18: 金 | V18: 家庭 | W18: 0 | X18: 0 | Y18: 0 | Z18: 家半
C19: 2021-10-09 | D19: 土 | V19: 体育 | W19: 0 | X19: 0 | Y19: 0 | Z19: 体半
C20: 2021-10-10 | D20: 日 | V20: 英語 | W20: 0 | X20: 0 | Y20: 0 | Z20: 英半
C21: 2021-10-11 | D21: 月 | V21: 道徳 | W21: =X21+Y21*0.5+U21 -> 0 | X21: 0 | Y21: 0 | Z21: 道半
C22: 2021-10-12 | D22: 火 | V22: 外国 | W22: =X22+Y22*0.5+U22 -> 0 | X22: 0 | Y22: 0 | Z22: 外半
C23: 2021-10-13 | D23: 水 | V23: 総合 | W23: =X23+Y23*0.5+U23 -> 0 | X23: 0 | Y23: 0 | Z23: 総半
C24: 2021-10-14 | D24: 木 | T24: 特活 | V24: 特活 | W24: =X24+Y24*0.5+U24 -> 0 | X24: 0 | Y24: 0 | Z24: 特半
C25: 2021-10-15 | D25: 金 | V25: 合計 | W25: =SUM(W11:W24) -> 0
C26: 2021-10-16 | D26: 土 | V26: 学校 | W26: =X26+Y26*0.5+U26 -> 0 | X26: =COUNTIF($E$11:$P$41,$V26) -> 0 | Y26: =COUNTIF($E$11:$P$41,$Z26) -> 0 | Z26: 学半
C27: 2021-10-17 | D27: 日 | V27: 委員 | W27: =X27+Y27*0.5+U27 -> 0 | X27: =COUNTIF($E$11:$P$41,$V27) -> 0 | Y27: =COUNTIF($E$11:$P$41,$Z27) -> 0 | Z27: 委半
C28: 2021-10-18 | D28: 月
C29: 2021-10-19 | D29: 火
C30: 2021-10-20 | D30: 水
C31: 2021-10-21 | D31: 木
C32: 2021-10-22 | D32: 金
C33: 2021-10-23 | D33: 土
C34: 2021-10-24 | D34: 日
C35: 2021-10-25 | D35: 月
C36: 2021-10-26 | D36: 火
C37: 2021-10-27 | D37: 水
C38: 2021-10-28 | D38: 木
C39: 2021-10-29 | D39: 金
C40: 2021-10-30 | D40: 土
C41: 2021-10-31 | D41: 日
R97: =SUM(Q68:Q97) -> 0

Sheet 11月
B1: 11 | C1: 月 | D1: 時間割変更があれば入力 | AO1: 国語 | AP1: 社会 | AQ1: 算数 | AR1: 理科 | AS1: 生活 | AT1: 音楽 | AU1: 図工 | AV1: 家庭 | AW1: 体育 | AX1: 英語 | AY1: 道徳 | AZ1: 外国 | BA1: 総合 | BB1: 特活 | BC1: 委員 | BD1: 学校 | BE1: 国半 | BF1: 社半 | BG1: 算半 | BH1: 理半 | BI1: 生半 | BJ1: 音半 | BK1: 図半 | BL1: 家半 | BM1: 体半 | BN1: 英半 | BO1: 道半 | BP1: 外半 | BQ1: 総半 | BR1: 特半 | BS1: 委半 | BT1: 学半
C2: A | D2: 月 | E2: 火 | F2: 水 | G2: 木 | H2: 金 | J2: B | K2: 月 | L2: 火 | M2: 水 | N2: 木 | O2: 金 | AO2: リスト範囲
C3: 1 | D3: ='10月'!D3 -> 国語 | E3: ='10月'!E3 -> 社会 | F3: ='10月'!F3 -> 音楽 | G3: ='10月'!G3 -> 国語 | H3: ='10月'!H3 -> 総合 | J3: 1 | K3: ='10月'!K3 -> 国語 | L3: ='10月'!L3 -> 社会 | M3: ='10月'!M3 -> 音楽 | N3: ='10月'!N3 -> 国語 | O3: ='10月'!O3 -> 総合
C4: 2 | D4: ='10月'!D4 -> 算数 | E4: ='10月'!E4 -> 算数 | F4: ='10月'!F4 -> 社会 | G4: ='10月'!G4 -> 算数 | H4: ='10月'!H4 -> 算数 | J4: 2 | K4: ='10月'!K4 -> 算数 | L4: ='10月'!L4 -> 算数 | M4: ='10月'!M4 -> 社会 | N4: ='10月'!N4 -> 算数 | O4: ='10月'!O4 -> 算数
C5: 3 | D5: ='10月'!D5 -> 理科 | E5: ='10月'!E5 -> 家庭 | F5: ='10月'!F5 -> 英語 | G5: ='10月'!G5 -> 道徳 | H5: ='10月'!H5 -> 国語 | J5: 3 | K5: ='10月'!K5 -> 理科 | L5: ='10月'!L5 -> 図工 | M5: ='10月'!M5 -> 英語 | N5: ='10月'!N5 -> 道徳 | O5: ='10月'!O5 -> 国語
A6: 記入済みセル | C6: 4 | D6: ='10月'!D6 -> 理科 | E6: ='10月'!E6 -> 家庭 | F6: ='10月'!F6 -> 算数 | G6: ='10月'!G6 -> 総合 | H6: ='10月'!H6 -> 音楽 | J6: 4 | K6: ='10月'!K6 -> 理科 | L6: ='10月'!L6 -> 図工 | M6: ='10月'!M6 -> 算数 | N6: ='10月'!N6 -> 総合 | O6: ='10月'!O6 -> 家庭
A7: =COUNTIF(E11:R41,"*?") -> 0 | C7: 5 | D7: ='10月'!D7 -> 社会 | E7: ='10月'!E7 -> 国語 | F7: ='10月'!F7 -> 国語 | G7: ='10月'!G7 -> 理科 | H7: ='10月'!H7 -> 体育 | J7: 5 | K7: ='10月'!K7 -> 社会 | L7: ='10月'!L7 -> 国語 | M7: ='10月'!M7 -> 国語 | N7: ='10月'!N7 -> 理科 | O7: ='10月'!O7 -> 体育
C8: 6 | D8: ='10月'!D8 -> 英語 | E8: ='10月'!E8 -> 体育 | F8: ='10月'!F8 -> 0 | G8: ='10月'!G8 -> 体育 | H8: ='10月'!H8 -> 特活 | J8: 6 | K8: ='10月'!K8 -> 英語 | L8: ='10月'!L8 -> 体育 | M8: ='10月'!M8 -> 0 | N8: ='10月'!N8 -> 体育 | O8: ='10月'!O8 -> 特活
B10: AB | C10: 月日 | D10: 曜日 | E10: 1 | G10: 2 | I10: 3 | K10: 4 | M10: 5 | O10: 6 | Q10: 学校行事 | U10: 追加 | W10: 計 | X10: １h | Y10: 0.5h | AA10: 転記用
C11: =DATE(年度,11,1) -> 2021-11-01 | D11: =TEXT(C11,"aaa") -> 月 | T11: 各教科など | V11: 国語 | W11: =X11+Y11*0.5+U11 -> 0 | X11: =COUNTIF($E$11:$P$40,$V11) -> 0 | Y11: =COUNTIF($E$11:$P$40,$Z11) -> 0 | Z11: 国半
C12: =C11+1 -> 2021-11-02 | D12: 火 | V12: 社会 | W12: 0 | X12: 0 | Y12: 0 | Z12: 社半
C13: 2021-11-03 | D13: 水 | V13: 算数 | W13: 0 | X13: 0 | Y13: 0 | Z13: 算半
C14: 2021-11-04 | D14: 木 | V14: 理科 | W14: 0 | X14: 0 | Y14: 0 | Z14: 理半
C15: 2021-11-05 | D15: 金 | V15: 生活 | W15: 0 | X15: 0 | Y15: 0 | Z15: 生半
C16: 2021-11-06 | D16: 土 | V16: 音楽 | W16: 0 | X16: 0 | Y16: 0 | Z16: 音半
C17: 2021-11-07 | D17: 日 | V17: 図工 | W17: 0 | X17: 0 | Y17: 0 | Z17: 図半
C18: 2021-11-08 | D18: 月 | V18: 家庭 | W18: 0 | X18: 0 | Y18: 0 | Z18: 家半
C19: 2021-11-09 | D19: 火 | V19: 体育 | W19: 0 | X19: 0 | Y19: 0 | Z19: 体半
C20: 2021-11-10 | D20: 水 | V20: 英語 | W20: 0 | X20: 0 | Y20: 0 | Z20: 英半
C21: 2021-11-11 | D21: 木 | V21: 道徳 | W21: =X21+Y21*0.5+U21 -> 0 | X21: =COUNTIF($E$11:$P$40,$V21) -> 0 | Y21: =COUNTIF($E$11:$P$40,$Z21) -> 0 | Z21: 道半
C22: 2021-11-12 | D22: 金 | V22: 外国 | W22: =X22+Y22*0.5+U22 -> 0 | X22: =COUNTIF($E$11:$P$40,$V22) -> 0 | Y22: =COUNTIF($E$11:$P$40,$Z22) -> 0 | Z22: 外半
C23: 2021-11-13 | D23: 土 | V23: 総合 | W23: =X23+Y23*0.5+U23 -> 0 | X23: =COUNTIF($E$11:$P$40,$V23) -> 0 | Y23: =COUNTIF($E$11:$P$40,$Z23) -> 0 | Z23: 総半
C24: 2021-11-14 | D24: 日 | T24: 特活 | V24: 特活 | W24: =X24+Y24*0.5+U24 -> 0 | X24: =COUNTIF($E$11:$P$40,$V24) -> 0 | Y24: =COUNTIF($E$11:$P$40,$Z24) -> 0 | Z24: 特半
C25: 2021-11-15 | D25: 月 | V25: 合計 | W25: =SUM(W11:W24) -> 0
C26: 2021-11-16 | D26: 火 | V26: 学校 | W26: =X26+Y26*0.5+U26 -> 0 | X26: =COUNTIF($E$11:$P$40,$V26) -> 0 | Y26: =COUNTIF($E$11:$P$40,$Z26) -> 0 | Z26: 学半
C27: 2021-11-17 | D27: 水 | V27: 委員 | W27: =X27+Y27*0.5+U27 -> 0 | X27: =COUNTIF($E$11:$P$40,$V27) -> 0 | Y27: =COUNTIF($E$11:$P$40,$Z27) -> 0 | Z27: 委半
C28: 2021-11-18 | D28: 木
C29: 2021-11-19 | D29: 金
C30: 2021-11-20 | D30: 土
C31: 2021-11-21 | D31: 日
C32: 2021-11-22 | D32: 月
C33: 2021-11-23 | D33: 火
C34: 2021-11-24 | D34: 水
C35: 2021-11-25 | D35: 木
C36: 2021-11-26 | D36: 金
C37: 2021-11-27 | D37: 土
C38: 2021-11-28 | D38: 日
C39: 2021-11-29 | D39: 月
C40: 2021-11-30 | D40: 火
R96: =SUM(Q67:Q96) -> 0

Sheet 12月
B1: 12 | C1: 月 | D1: 時間割変更があれば入力 | AO1: 国語 | AP1: 社会 | AQ1: 算数 | AR1: 理科 | AS1: 生活 | AT1: 音楽 | AU1: 図工 | AV1: 家庭 | AW1: 体育 | AX1: 英語 | AY1: 道徳 | AZ1: 外国 | BA1: 総合 | BB1: 特活 | BC1: 委員 | BD1: 学校 | BE1: 国半 | BF1: 社半 | BG1: 算半 | BH1: 理半 | BI1: 生半 | BJ1: 音半 | BK1: 図半 | BL1: 家半 | BM1: 体半 | BN1: 英半 | BO1: 道半 | BP1: 外半 | BQ1: 総半 | BR1: 特半 | BS1: 委半 | BT1: 学半
C2: A | D2: 月 | E2: 火 | F2: 水 | G2: 木 | H2: 金 | J2: B | K2: 月 | L2: 火 | M2: 水 | N2: 木 | O2: 金 | AO2: リスト範囲
C3: 1 | D3: ='11月'!D3 -> 国語 | E3: ='11月'!E3 -> 社会 | F3: ='11月'!F3 -> 音楽 | G3: ='11月'!G3 -> 国語 | H3: ='11月'!H3 -> 総合 | J3: 1 | K3: ='11月'!K3 -> 国語 | L3: ='11月'!L3 -> 社会 | M3: ='11月'!M3 -> 音楽 | N3: ='11月'!N3 -> 国語 | O3: ='11月'!O3 -> 総合
C4: 2 | D4: ='11月'!D4 -> 算数 | E4: ='11月'!E4 -> 算数 | F4: ='11月'!F4 -> 社会 | G4: ='11月'!G4 -> 算数 | H4: ='11月'!H4 -> 算数 | J4: 2 | K4: ='11月'!K4 -> 算数 | L4: ='11月'!L4 -> 算数 | M4: ='11月'!M4 -> 社会 | N4: ='11月'!N4 -> 算数 | O4: ='11月'!O4 -> 算数
C5: 3 | D5: ='11月'!D5 -> 理科 | E5: ='11月'!E5 -> 家庭 | F5: ='11月'!F5 -> 英語 | G5: ='11月'!G5 -> 道徳 | H5: ='11月'!H5 -> 国語 | J5: 3 | K5: ='11月'!K5 -> 理科 | L5: ='11月'!L5 -> 図工 | M5: ='11月'!M5 -> 英語 | N5: ='11月'!N5 -> 道徳 | O5: ='11月'!O5 -> 国語
A6: 記入済みセル | C6: 4 | D6: ='11月'!D6 -> 理科 | E6: ='11月'!E6 -> 家庭 | F6: ='11月'!F6 -> 算数 | G6: ='11月'!G6 -> 総合 | H6: ='11月'!H6 -> 音楽 | J6: 4 | K6: ='11月'!K6 -> 理科 | L6: ='11月'!L6 -> 図工 | M6: ='11月'!M6 -> 算数 | N6: ='11月'!N6 -> 総合 | O6: ='11月'!O6 -> 家庭
A7: =COUNTIF(E11:R41,"*?") -> 0 | C7: 5 | D7: ='11月'!D7 -> 社会 | E7: ='11月'!E7 -> 国語 | F7: ='11月'!F7 -> 国語 | G7: ='11月'!G7 -> 理科 | H7: ='11月'!H7 -> 体育 | J7: 5 | K7: ='11月'!K7 -> 社会 | L7: ='11月'!L7 -> 国語 | M7: ='11月'!M7 -> 国語 | N7: ='11月'!N7 -> 理科 | O7: ='11月'!O7 -> 体育
C8: 6 | D8: ='11月'!D8 -> 英語 | E8: ='11月'!E8 -> 体育 | F8: ='11月'!F8 -> 0 | G8: ='11月'!G8 -> 体育 | H8: ='11月'!H8 -> 特活 | J8: 6 | K8: ='11月'!K8 -> 英語 | L8: ='11月'!L8 -> 体育 | M8: ='11月'!M8 -> 0 | N8: ='11月'!N8 -> 体育 | O8: ='11月'!O8 -> 特活
B10: AB | C10: 月日 | D10: 曜日 | E10: 1 | G10: 2 | I10: 3 | K10: 4 | M10: 5 | O10: 6 | Q10: 学校行事 | U10: 追加 | W10: 計 | X10: １h | Y10: 0.5h | AA10: 転記用
C11: =DATE(年度,12,1) -> 2021-12-01 | D11: =TEXT(C11,"aaa") -> 水 | T11: 各教科など | V11: 国語 | W11: =X11+Y11*0.5+U11 -> 0 | X11: =COUNTIF($E$11:$P$41,$V11) -> 0 | Y11: =COUNTIF($E$11:$P$41,$Z11) -> 0 | Z11: 国半
C12: =C11+1 -> 2021-12-02 | D12: 木 | V12: 社会 | W12: 0 | X12: 0 | Y12: 0 | Z12: 社半
C13: 2021-12-03 | D13: 金 | V13: 算数 | W13: 0 | X13: 0 | Y13: 0 | Z13: 算半
C14: 2021-12-04 | D14: 土 | V14: 理科 | W14: 0 | X14: 0 | Y14: 0 | Z14: 理半
C15: 2021-12-05 | D15: 日 | V15: 生活 | W15: 0 | X15: 0 | Y15: 0 | Z15: 生半
C16: 2021-12-06 | D16: 月 | V16: 音楽 | W16: 0 | X16: 0 | Y16: 0 | Z16: 音半
C17: 2021-12-07 | D17: 火 | V17: 図工 | W17: 0 | X17: 0 | Y17: 0 | Z17: 図半
C18: 2021-12-08 | D18: 水 | V18: 家庭 | W18: 0 | X18: 0 | Y18: 0 | Z18: 家半
C19: 2021-12-09 | D19: 木 | V19: 体育 | W19: 0 | X19: 0 | Y19: 0 | Z19: 体半
C20: 2021-12-10 | D20: 金 | V20: 英語 | W20: 0 | X20: 0 | Y20: 0 | Z20: 英半
C21: 2021-12-11 | D21: 土 | V21: 道徳 | W21: =X21+Y21*0.5+U21 -> 0 | X21: 0 | Y21: 0 | Z21: 道半
C22: 2021-12-12 | D22: 日 | V22: 外国 | W22: =X22+Y22*0.5+U22 -> 0 | X22: 0 | Y22: 0 | Z22: 外半
C23: 2021-12-13 | D23: 月 | V23: 総合 | W23: =X23+Y23*0.5+U23 -> 0 | X23: 0 | Y23: 0 | Z23: 総半
C24: 2021-12-14 | D24: 火 | T24: 特活 | V24: 特活 | W24: =X24+Y24*0.5+U24 -> 0 | X24: 0 | Y24: 0 | Z24: 特半
C25: 2021-12-15 | D25: 水 | V25: 合計 | W25: =SUM(W11:W24) -> 0
C26: 2021-12-16 | D26: 木 | V26: 学校 | W26: =X26+Y26*0.5+U26 -> 0 | X26: =COUNTIF($E$11:$P$41,$V26) -> 0 | Y26: =COUNTIF($E$11:$P$41,$Z26) -> 0 | Z26: 学半
C27: 2021-12-17 | D27: 金 | V27: 委員 | W27: =X27+Y27*0.5+U27 -> 0 | X27: =COUNTIF($E$11:$P$41,$V27) -> 0 | Y27: =COUNTIF($E$11:$P$41,$Z27) -> 0 | Z27: 委半
C28: 2021-12-18 | D28: 土
C29: 2021-12-19 | D29: 日
C30: 2021-12-20 | D30: 月
C31: 2021-12-21 | D31: 火
C32: 2021-12-22 | D32: 水
C33: 2021-12-23 | D33: 木
C34: 2021-12-24 | D34: 金
C35: 2021-12-25 | D35: 土
C36: 2021-12-26 | D36: 日
C37: 2021-12-27 | D37: 月
C38: 2021-12-28
C39: 2021-12-29
C40: 2021-12-30
C41: 2021-12-31
R85: =SUM(Q56:Q85) -> 0

Sheet 1月
B1: 1 | C1: 月 | D1: 時間割変更があれば入力 | AO1: 国語 | AP1: 社会 | AQ1: 算数 | AR1: 理科 | AS1: 生活 | AT1: 音楽 | AU1: 図工 | AV1: 家庭 | AW1: 体育 | AX1: 英語 | AY1: 道徳 | AZ1: 外国 | BA1: 総合 | BB1: 特活 | BC1: 委員 | BD1: 学校 | BE1: 国半 | BF1: 社半 | BG1: 算半 | BH1: 理半 | BI1: 生半 | BJ1: 音半 | BK1: 図半 | BL1: 家半 | BM1: 体半 | BN1: 英半 | BO1: 道半 | BP1: 外半 | BQ1: 総半 | BR1: 特半 | BS1: 委半 | BT1: 学半
C2: A | D2: 月 | E2: 火 | F2: 水 | G2: 木 | H2: 金 | J2: B | K2: 月 | L2: 火 | M2: 水 | N2: 木 | O2: 金 | AO2: リスト範囲
C3: 1 | D3: ='12月'!D3 -> 国語 | E3: ='12月'!E3 -> 社会 | F3: ='12月'!F3 -> 音楽 | G3: ='12月'!G3 -> 国語 | H3: ='12月'!H3 -> 総合 | J3: 1 | K3: ='12月'!K3 -> 国語 | L3: ='12月'!L3 -> 社会 | M3: ='12月'!M3 -> 音楽 | N3: ='12月'!N3 -> 国語 | O3: ='12月'!O3 -> 総合
C4: 2 | D4: ='12月'!D4 -> 算数 | E4: ='12月'!E4 -> 算数 | F4: ='12月'!F4 -> 社会 | G4: ='12月'!G4 -> 算数 | H4: ='12月'!H4 -> 算数 | J4: 2 | K4: ='12月'!K4 -> 算数 | L4: ='12月'!L4 -> 算数 | M4: ='12月'!M4 -> 社会 | N4: ='12月'!N4 -> 算数 | O4: ='12月'!O4 -> 算数
C5: 3 | D5: ='12月'!D5 -> 理科 | E5: ='12月'!E5 -> 家庭 | F5: ='12月'!F5 -> 英語 | G5: ='12月'!G5 -> 道徳 | H5: ='12月'!H5 -> 国語 | J5: 3 | K5: ='12月'!K5 -> 理科 | L5: ='12月'!L5 -> 図工 | M5: ='12月'!M5 -> 英語 | N5: ='12月'!N5 -> 道徳 | O5: ='12月'!O5 -> 国語
A6: 記入済みセル | C6: 4 | D6: ='12月'!D6 -> 理科 | E6: ='12月'!E6 -> 家庭 | F6: ='12月'!F6 -> 算数 | G6: ='12月'!G6 -> 総合 | H6: ='12月'!H6 -> 音楽 | J6: 4 | K6: ='12月'!K6 -> 理科 | L6: ='12月'!L6 -> 図工 | M6: ='12月'!M6 -> 算数 | N6: ='12月'!N6 -> 総合 | O6: ='12月'!O6 -> 家庭
A7: =COUNTIF(E11:R41,"*?") -> 0 | C7: 5 | D7: ='12月'!D7 -> 社会 | E7: ='12月'!E7 -> 国語 | F7: ='12月'!F7 -> 国語 | G7: ='12月'!G7 -> 理科 | H7: ='12月'!H7 -> 体育 | J7: 5 | K7: ='12月'!K7 -> 社会 | L7: ='12月'!L7 -> 国語 | M7: ='12月'!M7 -> 国語 | N7: ='12月'!N7 -> 理科 | O7: ='12月'!O7 -> 体育
C8: 6 | D8: ='12月'!D8 -> 英語 | E8: ='12月'!E8 -> 体育 | F8: ='12月'!F8 -> 0 | G8: ='12月'!G8 -> 体育 | H8: ='12月'!H8 -> 特活 | J8: 6 | K8: ='12月'!K8 -> 英語 | L8: ='12月'!L8 -> 体育 | M8: ='12月'!M8 -> 0 | N8: ='12月'!N8 -> 体育 | O8: ='12月'!O8 -> 特活
B10: AB | C10: 月日 | D10: 曜日 | E10: 1 | G10: 2 | I10: 3 | K10: 4 | M10: 5 | O10: 6 | Q10: 学校行事 | U10: 追加 | W10: 計 | X10: １h | Y10: 0.5h | AA10: 転記用
C11: =DATE(年度+1,1,1) -> 2022-01-01 | T11: 各教科など | V11: 国語 | W11: =X11+Y11*0.5+U11 -> 0 | X11: =COUNTIF($E$11:$P$41,$V11) -> 0 | Y11: =COUNTIF($E$11:$P$41,$Z11) -> 0 | Z11: 国半 | AA11: 25
C12: =C11+1 -> 2022-01-02 | V12: 社会 | W12: 0 | X12: 0 | Y12: 0 | Z12: 社半 | AA12: 5
C13: 2022-01-03 | V13: 算数 | W13: 0 | X13: 0 | Y13: 0 | Z13: 算半 | AA13: 15
C14: 2022-01-04 | D14: =IF(CELL("contents",$C14)>0,CHOOSE(WEEKDAY($C14),"日","月","火","水","木","金","土"),"") -> 火 | V14: 理科 | W14: 0 | X14: 0 | Y14: 0 | Z14: 理半 | AA14: 7
C15: 2022-01-05 | D15: 水 | V15: 生活 | W15: 0 | X15: 0 | Y15: 0 | Z15: 生半 | AA15: 0
C16: 2022-01-06 | D16: 木 | V16: 音楽 | W16: 0 | X16: 0 | Y16: 0 | Z16: 音半 | AA16: 2
C17: 2022-01-07 | D17: =IF(CELL("contents",$C17)>0,CHOOSE(WEEKDAY($C17),"日","月","火","水","木","金","土"),"") -> 金 | V17: 図工 | W17: 0 | X17: 0 | Y17: 0 | Z17: 図半 | AA17: 2
C18: 2022-01-08 | D18: 土 | V18: 家庭 | W18: 0 | X18: 0 | Y18: 0 | Z18: 家半 | AA18: 5
C19: 2022-01-09 | D19: =TEXT(C19,"aaa") -> 日 | V19: 体育 | W19: 0 | X19: 0 | Y19: 0 | Z19: 体半 | AA19: 3
C20: 2022-01-10 | D20: 月 | V20: 英語 | W20: 0 | X20: 0 | Y20: 0 | Z20: 英半 | AA20: 5
C21: 2022-01-11 | D21: 火 | V21: 道徳 | W21: =X21+Y21*0.5+U21 -> 0 | X21: 0 | Y21: 0 | Z21: 道半 | AA21: 3
C22: 2022-01-12 | D22: 水 | V22: 外国 | W22: =X22+Y22*0.5+U22 -> 0 | X22: 0 | Y22: 0 | Z22: 外半 | AA22: 3
C23: 2022-01-13 | D23: 木 | V23: 総合 | W23: =X23+Y23*0.5+U23 -> 0 | X23: 0 | Y23: 0 | Z23: 総半 | AA23: 0
C24: 2022-01-14 | D24: 金 | T24: 特活 | V24: 特活 | W24: =X24+Y24*0.5+U24 -> 0 | X24: 0 | Y24: 0 | Z24: 特半 | AA24: 3
C25: 2022-01-15 | D25: 土 | V25: 合計 | W25: =SUM(W11:W24) -> 0 | AA25: 78
C26: 2022-01-16 | D26: 日 | V26: 学校 | W26: =X26+Y26*0.5+U26 -> 0 | X26: =COUNTIF($E$11:$P$41,$V26) -> 0 | Y26: =COUNTIF($E$11:$P$41,$Z26) -> 0 | Z26: 学半
C27: 2022-01-17 | D27: 月 | V27: 委員 | W27: =X27+Y27*0.5+U27 -> 0 | X27: =COUNTIF($E$11:$P$41,$V27) -> 0 | Y27: =COUNTIF($E$11:$P$41,$Z27) -> 0 | Z27: 委半
C28: 2022-01-18 | D28: 火
C29: 2022-01-19 | D29: 水
C30: 2022-01-20 | D30: 木
C31: 2022-01-21 | D31: 金
C32: 2022-01-22 | D32: 土
C33: 2022-01-23 | D33: 日
C34: 2022-01-24 | D34: 月
C35: 2022-01-25 | D35: 火
C36: 2022-01-26 | D36: 水
C37: 2022-01-27 | D37: 木
C38: 2022-01-28 | D38: 金
C39: 2022-01-29 | D39: 土
C40: 2022-01-30 | D40: 日
C41: 2022-01-31 | D41: 月
R97: =SUM(Q68:Q97) -> 0

Sheet 2月
B1: 2 | C1: 月 | D1: 時間割変更があれば入力 | AO1: 国語 | AP1: 社会 | AQ1: 算数 | AR1: 理科 | AS1: 生活 | AT1: 音楽 | AU1: 図工 | AV1: 家庭 | AW1: 体育 | AX1: 英語 | AY1: 道徳 | AZ1: 外国 | BA1: 総合 | BB1: 特活 | BC1: 委員 | BD1: 学校 | BE1: 国半 | BF1: 社半 | BG1: 算半 | BH1: 理半 | BI1: 生半 | BJ1: 音半 | BK1: 図半 | BL1: 家半 | BM1: 体半 | BN1: 英半 | BO1: 道半 | BP1: 外半 | BQ1: 総半 | BR1: 特半 | BS1: 委半 | BT1: 学半
C2: A | D2: 月 | E2: 火 | F2: 水 | G2: 木 | H2: 金 | J2: B | K2: 月 | L2: 火 | M2: 水 | N2: 木 | O2: 金 | AO2: リスト範囲
C3: 1 | D3: ='1月'!D3 -> 国語 | E3: ='1月'!E3 -> 社会 | F3: ='1月'!F3 -> 音楽 | G3: ='1月'!G3 -> 国語 | H3: ='1月'!H3 -> 総合 | J3: 1 | K3: ='1月'!K3 -> 国語 | L3: ='1月'!L3 -> 社会 | M3: ='1月'!M3 -> 音楽 | N3: ='1月'!N3 -> 国語 | O3: ='1月'!O3 -> 総合
C4: 2 | D4: ='1月'!D4 -> 算数 | E4: ='1月'!E4 -> 算数 | F4: ='1月'!F4 -> 社会 | G4: ='1月'!G4 -> 算数 | H4: ='1月'!H4 -> 算数 | J4: 2 | K4: ='1月'!K4 -> 算数 | L4: ='1月'!L4 -> 算数 | M4: ='1月'!M4 -> 社会 | N4: ='1月'!N4 -> 算数 | O4: ='1月'!O4 -> 算数
C5: 3 | D5: ='1月'!D5 -> 理科 | E5: ='1月'!E5 -> 家庭 | F5: ='1月'!F5 -> 英語 | G5: ='1月'!G5 -> 道徳 | H5: ='1月'!H5 -> 国語 | J5: 3 | K5: ='1月'!K5 -> 理科 | L5: ='1月'!L5 -> 図工 | M5: ='1月'!M5 -> 英語 | N5: ='1月'!N5 -> 道徳 | O5: ='1月'!O5 -> 国語
A6: 記入済みセル | C6: 4 | D6: ='1月'!D6 -> 理科 | E6: ='1月'!E6 -> 家庭 | F6: ='1月'!F6 -> 算数 | G6: ='1月'!G6 -> 総合 | H6: ='1月'!H6 -> 音楽 | J6: 4 | K6: ='1月'!K6 -> 理科 | L6: ='1月'!L6 -> 図工 | M6: ='1月'!M6 -> 算数 | N6: ='1月'!N6 -> 総合 | O6: ='1月'!O6 -> 家庭
A7: =COUNTIF(E11:R41,"*?") -> 0 | C7: 5 | D7: ='1月'!D7 -> 社会 | E7: ='1月'!E7 -> 国語 | F7: ='1月'!F7 -> 国語 | G7: ='1月'!G7 -> 理科 | H7: ='1月'!H7 -> 体育 | J7: 5 | K7: ='1月'!K7 -> 社会 | L7: ='1月'!L7 -> 国語 | M7: ='1月'!M7 -> 国語 | N7: ='1月'!N7 -> 理科 | O7: ='1月'!O7 -> 体育
C8: 6 | D8: ='1月'!D8 -> 英語 | E8: ='1月'!E8 -> 体育 | F8: ='1月'!F8 -> 0 | G8: ='1月'!G8 -> 体育 | H8: ='1月'!H8 -> 特活 | J8: 6 | K8: ='1月'!K8 -> 英語 | L8: ='1月'!L8 -> 体育 | M8: ='1月'!M8 -> 0 | N8: ='1月'!N8 -> 体育 | O8: ='1月'!O8 -> 特活
D9: ='1月'!D9 -> 0 | E9: ='1月'!E9 -> 0 | F9: ='1月'!F9 -> 0 | G9: ='1月'!G9 -> 0 | H9: ='1月'!H9 -> 0
B10: AB | C10: 月日 | D10: 曜日 | E10: 1 | G10: 2 | I10: 3 | K10: 4 | M10: 5 | O10: 6 | Q10: 学校行事 | U10: 追加 | W10: 計 | X10: １h | Y10: 0.5h | AA10: 転記用
C11: =DATE(年度+1,2,1) -> 2022-02-01 | D11: =TEXT(C11,"aaa") -> 火 | T11: 各教科など | V11: 国語 | W11: =X11+Y11*0.5+U11 -> 0 | X11: =COUNTIF($E$11:$P$40,$V11) -> 0 | Y11: =COUNTIF($E$11:$P$40,$Z11) -> 0 | Z11: 国半
C12: =C11+1 -> 2022-02-02 | D12: 水 | V12: 社会 | W12: 0 | X12: 0 | Y12: 0 | Z12: 社半
C13: 2022-02-03 | D13: 木 | V13: 算数 | W13: 0 | X13: 0 | Y13: 0 | Z13: 算半
C14: 2022-02-04 | D14: 金 | V14: 理科 | W14: 0 | X14: 0 | Y14: 0 | Z14: 理半
C15: 2022-02-05 | D15: 土 | V15: 生活 | W15: 0 | X15: 0 | Y15: 0 | Z15: 生半
C16: 2022-02-06 | D16: 日 | V16: 音楽 | W16: 0 | X16: 0 | Y16: 0 | Z16: 音半
C17: 2022-02-07 | D17: 月 | V17: 図工 | W17: 0 | X17: 0 | Y17: 0 | Z17: 図半
C18: 2022-02-08 | D18: 火 | V18: 家庭 | W18: 0 | X18: 0 | Y18: 0 | Z18: 家半
C19: 2022-02-09 | D19: 水 | V19: 体育 | W19: 0 | X19: 0 | Y19: 0 | Z19: 体半
C20: 2022-02-10 | D20: 木 | V20: 英語 | W20: 0 | X20: 0 | Y20: 0 | Z20: 英半
C21: 2022-02-11 | D21: 金 | V21: 道徳 | W21: =X21+Y21*0.5+U21 -> 0 | X21: =COUNTIF($E$11:$P$40,$V21) -> 0 | Y21: =COUNTIF($E$11:$P$40,$Z21) -> 0 | Z21: 道半
C22: 2022-02-12 | D22: 土 | V22: 外国 | W22: =X22+Y22*0.5+U22 -> 0 | X22: =COUNTIF($E$11:$P$40,$V22) -> 0 | Y22: =COUNTIF($E$11:$P$40,$Z22) -> 0 | Z22: 外半
C23: 2022-02-13 | D23: 日 | V23: 総合 | W23: =X23+Y23*0.5+U23 -> 0 | X23: =COUNTIF($E$11:$P$40,$V23) -> 0 | Y23: =COUNTIF($E$11:$P$40,$Z23) -> 0 | Z23: 総半
C24: 2022-02-14 | D24: 月 | T24: 特活 | V24: 特活 | W24: =X24+Y24*0.5+U24 -> 0 | X24: =COUNTIF($E$11:$P$40,$V24) -> 0 | Y24: =COUNTIF($E$11:$P$40,$Z24) -> 0 | Z24: 特半
C25: 2022-02-15 | D25: 火 | V25: 合計 | W25: =SUM(W11:W24) -> 0
C26: 2022-02-16 | D26: 水 | V26: 学校 | W26: =X26+Y26*0.5+U26 -> 0 | X26: =COUNTIF($E$11:$P$40,$V26) -> 0 | Y26: =COUNTIF($E$11:$P$40,$Z26) -> 0 | Z26: 学半
C27: 2022-02-17 | D27: 木 | V27: 委員 | W27: =X27+Y27*0.5+U27 -> 0 | X27: =COUNTIF($E$11:$P$40,$V27) -> 0 | Y27: =COUNTIF($E$11:$P$40,$Z27) -> 0 | Z27: 委半
C28: 2022-02-18 | D28: 金
C29: 2022-02-19 | D29: 土
C30: 2022-02-20 | D30: 日
C31: 2022-02-21 | D31: 月
C32: 2022-02-22 | D32: 火
C33: 2022-02-23 | D33: 水
C34: 2022-02-24 | D34: 木
C35: 2022-02-25 | D35: 金
C36: 2022-02-26 | D36: 土
C37: 2022-02-27 | D37: 日
C38: 2022-02-28 | D38: 月
C39: =IF(MONTH(C38+1)=2,C38+1,"") ->  | D39: =IF(CELL("contents",$C39)<>"",CHOOSE(WEEKDAY($C39),"日","月","火","水","木","金","土"),"") -> 
R92: =SUM(Q63:Q92) -> 0

Sheet 3月
B1: 3 | C1: 月 | D1: 時間割変更があれば入力 | AO1: 国語 | AP1: 社会 | AQ1: 算数 | AR1: 理科 | AS1: 生活 | AT1: 音楽 | AU1: 図工 | AV1: 家庭 | AW1: 体育 | AX1: 英語 | AY1: 道徳 | AZ1: 外国 | BA1: 総合 | BB1: 特活 | BC1: 委員 | BD1: 学校 | BE1: 国半 | BF1: 社半 | BG1: 算半 | BH1: 理半 | BI1: 生半 | BJ1: 音半 | BK1: 図半 | BL1: 家半 | BM1: 体半 | BN1: 英半 | BO1: 道半 | BP1: 外半 | BQ1: 総半 | BR1: 特半 | BS1: 委半 | BT1: 学半
C2: A | D2: 月 | E2: 火 | F2: 水 | G2: 木 | H2: 金 | J2: B | K2: 月 | L2: 火 | M2: 水 | N2: 木 | O2: 金 | AO2: リスト範囲
C3: 1 | D3: ='2月'!D3 -> 国語 | E3: ='2月'!E3 -> 社会 | F3: ='2月'!F3 -> 音楽 | G3: ='2月'!G3 -> 国語 | H3: ='2月'!H3 -> 総合 | J3: 1 | K3: ='2月'!K3 -> 国語 | L3: ='2月'!L3 -> 社会 | M3: ='2月'!M3 -> 音楽 | N3: ='2月'!N3 -> 国語 | O3: ='2月'!O3 -> 総合
C4: 2 | D4: ='2月'!D4 -> 算数 | E4: ='2月'!E4 -> 算数 | F4: ='2月'!F4 -> 社会 | G4: ='2月'!G4 -> 算数 | H4: ='2月'!H4 -> 算数 | J4: 2 | K4: ='2月'!K4 -> 算数 | L4: ='2月'!L4 -> 算数 | M4: ='2月'!M4 -> 社会 | N4: ='2月'!N4 -> 算数 | O4: ='2月'!O4 -> 算数
C5: 3 | D5: ='2月'!D5 -> 理科 | E5: ='2月'!E5 -> 家庭 | F5: ='2月'!F5 -> 英語 | G5: ='2月'!G5 -> 道徳 | H5: ='2月'!H5 -> 国語 | J5: 3 | K5: ='2月'!K5 -> 理科 | L5: ='2月'!L5 -> 図工 | M5: ='2月'!M5 -> 英語 | N5: ='2月'!N5 -> 道徳 | O5: ='2月'!O5 -> 国語
A6: 記入済みセル | C6: 4 | D6: ='2月'!D6 -> 理科 | E6: ='2月'!E6 -> 家庭 | F6: ='2月'!F6 -> 算数 | G6: ='2月'!G6 -> 総合 | H6: ='2月'!H6 -> 音楽 | J6: 4 | K6: ='2月'!K6 -> 理科 | L6: ='2月'!L6 -> 図工 | M6: ='2月'!M6 -> 算数 | N6: ='2月'!N6 -> 総合 | O6: ='2月'!O6 -> 家庭
A7: =COUNTIF(E11:R43,"*?") -> 0 | C7: 5 | D7: ='2月'!D7 -> 社会 | E7: ='2月'!E7 -> 国語 | F7: ='2月'!F7 -> 国語 | G7: ='2月'!G7 -> 理科 | H7: ='2月'!H7 -> 体育 | J7: 5 | K7: ='2月'!K7 -> 社会 | L7: ='2月'!L7 -> 国語 | M7: ='2月'!M7 -> 国語 | N7: ='2月'!N7 -> 理科 | O7: ='2月'!O7 -> 体育
C8: 6 | D8: ='2月'!D8 -> 英語 | E8: ='2月'!E8 -> 体育 | F8: ='2月'!F8 -> 0 | G8: ='2月'!G8 -> 体育 | H8: ='2月'!H8 -> 特活 | J8: 6 | K8: ='2月'!K8 -> 英語 | L8: ='2月'!L8 -> 体育 | M8: ='2月'!M8 -> 0 | N8: ='2月'!N8 -> 体育 | O8: ='2月'!O8 -> 特活
B10: AB | C10: 月日 | D10: 曜日 | E10: 1 | G10: 2 | I10: 3 | K10: 4 | M10: 5 | O10: 6 | Q10: 学校行事 | U10: 追加 | W10: 計 | X10: １h | Y10: 0.5h | AA10: 転記用
C11: =DATE(年度+1,3,1) -> 2022-03-01 | D11: =TEXT(C11,"aaa") -> 火 | T11: 各教科など | V11: 国語 | W11: =X11+Y11*0.5+U11 -> 0 | X11: =COUNTIF($E$11:$P$42,$V11) -> 0 | Y11: =COUNTIF($E$11:$P$42,$Z11) -> 0 | Z11: 国半
C12: =C11+1 -> 2022-03-02 | D12: =TEXT(C12,"aaa") -> 水 | V12: 社会 | W12: 0 | X12: 0 | Y12: 0 | Z12: 社半
C13: 2022-03-03 | D13: 木 | V13: 算数 | W13: 0 | X13: 0 | Y13: 0 | Z13: 算半
C14: 2022-03-04 | D14: 金 | V14: 理科 | W14: 0 | X14: 0 | Y14: 0 | Z14: 理半
C15: 2022-03-05 | D15: 土 | V15: 生活 | W15: 0 | X15: 0 | Y15: 0 | Z15: 生半
C16: 2022-03-06 | D16: 日 | V16: 音楽 | W16: 0 | X16: 0 | Y16: 0 | Z16: 音半
C17: 2022-03-07 | D17: 月 | V17: 図工 | W17: 0 | X17: 0 | Y17: 0 | Z17: 図半
C18: 2022-03-08 | D18: 火 | V18: 家庭 | W18: 0 | X18: 0 | Y18: 0 | Z18: 家半
C19: 2022-03-09 | D19: 水 | V19: 体育 | W19: 0 | X19: 0 | Y19: 0 | Z19: 体半
C20: 2022-03-10 | D20: 木 | V20: 英語 | W20: 0 | X20: 0 | Y20: 0 | Z20: 英半
C21: 2022-03-11 | D21: 金 | V21: 道徳 | W21: =X21+Y21*0.5+U21 -> 0 | X21: 0 | Y21: 0 | Z21: 道半
C22: 2022-03-12 | D22: 土 | V22: 外国 | W22: =X22+Y22*0.5+U22 -> 0 | X22: 0 | Y22: 0 | Z22: 外半
C23: 2022-03-13 | D23: 日 | V23: 総合 | W23: =X23+Y23*0.5+U23 -> 0 | X23: 0 | Y23: 0 | Z23: 総半
C24: 2022-03-14 | D24: 月 | T24: 特活 | V24: 特活 | W24: =X24+Y24*0.5+U24 -> 0 | X24: 0 | Y24: 0 | Z24: 特半
C25: 2022-03-15 | D25: 火 | V25: 合計 | W25: =SUM(W11:W24) -> 0
C26: 2022-03-16 | D26: 水 | V26: 学校 | W26: =X26+Y26*0.5+U26 -> 0 | X26: =COUNTIF($E$11:$P$42,$V26) -> 0 | Y26: =COUNTIF($E$11:$P$42,$Z26) -> 0 | Z26: 学半
C27: 2022-03-17 | D27: 木 | V27: 委員 | W27: =X27+Y27*0.5+U27 -> 0 | X27: =COUNTIF($E$11:$P$42,$V27) -> 0 | Y27: =COUNTIF($E$11:$P$42,$Z27) -> 0 | Z27: 委半
C28: 2022-03-18 | D28: 金
C29: 2022-03-19 | D29: 土
C30: 2022-03-20 | D30: 日
C31: 2022-03-21 | D31: 月
C32: 2022-03-22 | D32: 火
C33: 2022-03-23 | D33: 水
C34: 2022-03-24 | D34: 木
C35: =C34+1 -> 2022-03-25 | D35: 金
C36: =C35+1 -> 2022-03-26 | D36: =TEXT(C36,"aaa") -> 土
C37: 2022-03-27 | D37: 日
C38: 2022-03-28 | D38: 月
R92: =SUM(Q63:Q92) -> 0
